Workbook

Sheet Документ
A2: Бюджетная роспись (расходы)
A4: Дата: 01.01.2021
A5: Документ, учреждение | B5: Ц.ст. | C5: Расх. | E5: Разд. | K5: Сумма на 2021 год | R5: Сумма на 2022 год | S5: Сумма на 2023 год
A6: Муниципальная программа "Развитие муниципальной службы и органов управления ЗАТО г.Радужный Владимирской области" | B6: 0100000000 | C6: 000 | D6: 000 | E6: 0000 | K6: 69470650 | L6: 69470650 | M6: 0 | N6: 69470650 | O6: 0 | P6: 69470650 | Q6: 0 | R6: 65376879 | S6: 62396879
A7: Основное мероприятие "Создание условий для развития муниципальной службы в муниципальном образовании ЗАТО г.Радужный Владимирской области" | B7: 0100100000 | C7: 000 | D7: 000 | E7: 0000 | K7: 7107200 | L7: 7107200 | M7: 0 | N7: 7107200 | O7: 0 | P7: 7107200 | Q7: 0 | R7: 4547200 | S7: 4547200
A8: Пенсии за выслугу лет лицам, замещавшим муниципальные должности и должности муниципальной службы ЗАТО г. Радужный Владимирской области | B8: 0100110500 | C8: 000 | D8: 000 | E8: 0000 | K8: 2097200 | L8: 2097200 | M8: 0 | N8: 2097200 | O8: 0 | P8: 2097200 | Q8: 0 | R8: 2097200 | S8: 2097200
A9: Закупка товаров, работ и услуг для обеспечения государственных (муниципальных) нужд | B9: 0100110500 | C9: 200 | D9: 000 | E9: 1001 | K9: 20800 | L9: 20800 | M9: 0 | N9: 20800 | O9: 0 | P9: 20800 | Q9: 0 | R9: 20800 | S9: 20800
A10: Пенсионное обеспечение | B10: 0100110500 | C10: 200 | D10: 000 | E10: 1001 | K10: 20800 | L10: 20800 | M10: 0 | N10: 20800 | O10: 0 | P10: 20800 | Q10: 0 | R10: 20800 | S10: 20800
A11: Социальное обеспечение и иные выплаты населению | B11: 0100110500 | C11: 300 | D11: 000 | E11: 0000 | K11: 2076400 | L11: 2076400 | M11: 0 | N11: 2076400 | O11: 0 | P11: 2076400 | Q11: 0 | R11: 2076400 | S11: 2076400
A12: Пенсионное обеспечение | B12: 0100110500 | C12: 300 | D12: 000 | E12: 1001 | K12: 2076400 | L12: 2076400 | M12: 0 | N12: 2076400 | O12: 0 | P12: 2076400 | Q12: 0 | R12: 2076400 | S12: 2076400
A13: Мероприятия, направленные на повышение эффективности муниципального управления | B13: 0100120220 | C13: 000 | D13: 000 | E13: 0000 | K13: 3510000 | L13: 3510000 | M13: 0 | N13: 3510000 | O13: 0 | P13: 3510000 | Q13: 0 | R13: 2450000 | S13: 2450000
A14: Закупка товаров, работ и услуг для обеспечения государственных (муниципальных) нужд | B14: 0100120220 | C14: 200 | D14: 000 | E14: 0000 | K14: 3510000 | L14: 3510000 | M14: 0 | N14: 3510000 | O14: 0 | P14: 3510000 | Q14: 0 | R14: 2450000 | S14: 2450000
A15: Другие общегосударственные вопросы | B15: 0100120220 | C15: 200 | D15: 000 | E15: 0113 | K15: 10000 | L15: 10000 | M15: 0 | N15: 10000 | O15: 0 | P15: 10000 | Q15: 0 | R15: 0 | S15: 0
A16: Периодическая печать и издательства | B16: 0100120220 | C16: 200 | D16: 000 | E16: 1202 | K16: 3500000 | L16: 3500000 | M16: 0 | N16: 3500000 | O16: 0 | P16: 3500000 | Q16: 0 | R16: 2450000 | S16: 2450000
A17: Средства на индексацию заработной платы муниципальных служащих и работников муниципальных казенных учреждений, исполнение Указов Президента о доведении заработной платы согласно "дорожным картам" | B17: 0100120229 | C17: 000 | D17: 000 | E17: 0000 | K17: 1500000 | L17: 1500000 | M17: 0 | N17: 1500000 | O17: 0 | P17: 1500000 | Q17: 0 | R17: 0 | S17: 0
A18: Иные бюджетные ассигнования | B18: 0100120229 | C18: 800 | D18: 000 | E18: 0000 | K18: 1500000 | L18: 1500000 | M18: 0 | N18: 1500000 | O18: 0 | P18: 1500000 | Q18: 0 | R18: 0 | S18: 0
A19: Другие общегосударственные вопросы | B19: 0100120229 | C19: 800 | D19: 000 | E19: 0113 | K19: 1500000 | L19: 1500000 | M19: 0 | N19: 1500000 | O19: 0 | P19: 1500000 | Q19: 0 | R19: 0 | S19: 0
A20: Основное мероприятие "Расходы на обеспечение деятельности центров органов местного самоуправления" | B20: 0100200000 | C20: 000 | D20: 000 | E20: 0000 | K20: 8158488 | L20: 8158488 | M20: 0 | N20: 8158488 | O20: 0 | P20: 8158488 | Q20: 0 | R20: 10371769 | S20: 7391769
A21: Финансирование деятельности профильных (функциональных) центров, созданных в органах местного самоуправления | B21: 0100200590 | C21: 000 | D21: 000 | E21: 0000 | K21: 8158488 | L21: 8158488 | M21: 0 | N21: 8158488 | O21: 0 | P21: 8158488 | Q21: 0 | R21: 10371769 | S21: 7391769
A22: Расходы на выплаты персоналу в целях обеспечения выполнения функций государственными (муниципальными) органами, казенными учреждениями, органами управления государственными внебюджетными фондами | B22: 0100200590 | C22: 100 | D22: 000 | E22: 0000 | K22: 7421614 | L22: 7421614 | M22: 0 | N22: 7421614 | O22: 0 | P22: 7421614 | Q22: 0 | R22: 9715405 | S22: 6735405
A23: Другие общегосударственные вопросы | B23: 0100200590 | C23: 100 | D23: 000 | E23: 0113 | K23: 7421614 | L23: 7421614 | M23: 0 | N23: 7421614 | O23: 0 | P23: 7421614 | Q23: 0 | R23: 9715405 | S23: 6735405
A24: Закупка товаров, работ и услуг для обеспечения государственных (муниципальных) нужд | B24: 0100200590 | C24: 200 | D24: 000 | E24: 0000 | K24: 736874 | L24: 736874 | M24: 0 | N24: 736874 | O24: 0 | P24: 736874 | Q24: 0 | R24: 656364 | S24: 656364
A25: Другие общегосударственные вопросы | B25: 0100200590 | C25: 200 | D25: 000 | E25: 0113 | K25: 736874 | L25: 736874 | M25: 0 | N25: 736874 | O25: 0 | P25: 736874 | Q25: 0 | R25: 656364 | S25: 656364
A26: Основное мероприятие "Создание условий для эффективного содержания административных зданий" | B26: 0100300000 | C26: 000 | D26: 000 | E26: 0000 | K26: 54043762 | L26: 54043762 | M26: 0 | N26: 54043762 | O26: 0 | P26: 54043762 | Q26: 0 | R26: 50457910 | S26: 50457910
A27: Финансирование деятельности муниципальных учреждений, обеспечивающих эффективное содержание и эксплуатацию административных зданий | B27: 0100300590 | C27: 000 | D27: 000 | E27: 0000 | K27: 54043762 | L27: 54043762 | M27: 0 | N27: 54043762 | O27: 0 | P27: 54043762 | Q27: 0 | R27: 50457910 | S27: 50457910
A28: Расходы на выплаты персоналу в целях обеспечения выполнения функций государственными (муниципальными) органами, казенными учреждениями, органами управления государственными внебюджетными фондами | B28: 0100300590 | C28: 100 | D28: 000 | E28: 0000 | K28: 40053671 | L28: 40053671 | M28: 0 | N28: 40053671 | O28: 0 | P28: 40053671 | Q28: 0 | R28: 37945063 | S28: 37945063
A29: Другие общегосударственные вопросы | B29: 0100300590 | C29: 100 | D29: 000 | E29: 0113 | K29: 40053671 | L29: 40053671 | M29: 0 | N29: 40053671 | O29: 0 | P29: 40053671 | Q29: 0 | R29: 37945063 | S29: 37945063
A30: Закупка товаров, работ и услуг для обеспечения государственных (муниципальных) нужд | B30: 0100300590 | C30: 200 | D30: 000 | E30: 0000 | K30: 11906873 | L30: 11906873 | M30: 0 | N30: 11906873 | O30: 0 | P30: 11906873 | Q30: 0 | R30: 9921992 | S30: 9953544
A31: Другие общегосударственные вопросы | B31: 0100300590 | C31: 200 | D31: 000 | E31: 0113 | K31: 11906873 | L31: 11906873 | M31: 0 | N31: 11906873 | O31: 0 | P31: 11906873 | Q31: 0 | R31: 9921992 | S31: 9953544
A32: Иные бюджетные ассигнования | B32: 0100300590 | C32: 800 | D32: 000 | E32: 0000 | K32: 2083218 | L32: 2083218 | M32: 0 | N32: 2083218 | O32: 0 | P32: 2083218 | Q32: 0 | R32: 2590855 | S32: 2559303
A33: Другие общегосударственные вопросы | B33: 0100300590 | C33: 800 | D33: 000 | E33: 0113 | K33: 2083218 | L33: 2083218 | M33: 0 | N33: 2083218 | O33: 0 | P33: 2083218 | Q33: 0 | R33: 2590855 | S33: 2559303
A34: Основное мероприятие "Проведение Всероссийской переписи населения 2020 года" | B34: 0100500000 | C34: 000 | D34: 000 | E34: 0000 | K34: 161200 | L34: 161200 | M34: 0 | N34: 161200 | O34: 0 | P34: 161200 | Q34: 0 | R34: 0 | S34: 0
A35: Проведение Всероссийской переписи населения 2020 года | B35: 0100554690 | C35: 000 | D35: 000 | E35: 0000 | K35: 161200 | L35: 161200 | M35: 0 | N35: 161200 | O35: 0 | P35: 161200 | Q35: 0 | R35: 0 | S35: 0
A36: Закупка товаров, работ и услуг для обеспечения государственных (муниципальных) нужд | B36: 0100554690 | C36: 200 | D36: 000 | E36: 0000 | K36: 161200 | L36: 161200 | M36: 0 | N36: 161200 | O36: 0 | P36: 161200 | Q36: 0 | R36: 0 | S36: 0
A37: Другие общегосударственные вопросы | B37: 0100554690 | C37: 200 | D37: 000 | E37: 0113 | K37: 161200 | L37: 161200 | M37: 0 | N37: 161200 | O37: 0 | P37: 161200 | Q37: 0 | R37: 0 | S37: 0
A38: Муниципальная программа "Обеспечение общественного порядка и профилактики правонарушений ЗАТО г. Радужный Владимирской области Владимирской области" | B38: 0300000000 | C38: 000 | D38: 000 | E38: 0000 | K38: 181000 | L38: 181000 | M38: 0 | N38: 181000 | O38: 0 | P38: 181000 | Q38: 0 | R38: 0 | S38: 0
A39: Подпрограмма "Комплексные меры противодействия злоупотреблению наркотиками и их незаконному обороту на территории ЗАТО г.Радужный Владимирской области" | B39: 0330000000 | C39: 000 | D39: 000 | E39: 0000 | K39: 153000 | L39: 153000 | M39: 0 | N39: 153000 | O39: 0 | P39: 153000 | Q39: 0 | R39: 0 | S39: 0
A40: Основное мероприятие "Сокращение масштабов распространения наркомании и связанного с ней социального и экономического ущерба" | B40: 0330100000 | C40: 000 | D40: 000 | E40: 0000 | K40: 153000 | L40: 153000 | M40: 0 | N40: 153000 | O40: 0 | P40: 153000 | Q40: 0 | R40: 0 | S40: 0
A41: Мероприятия, направленные на сокращение масштабов распространения наркомании и связанного с ней социального и экономического ущерба | B41: 0330120220 | C41: 000 | D41: 000 | E41: 0000 | K41: 38000 | L41: 38000 | M41: 0 | N41: 38000 | O41: 0 | P41: 38000 | Q41: 0 | R41: 0 | S41: 0
A42: Закупка товаров, работ и услуг для обеспечения государственных (муниципальных) нужд | B42: 0330120220 | C42: 200 | D42: 000 | E42: 0000 | K42: 38000 | L42: 38000 | M42: 0 | N42: 38000 | O42: 0 | P42: 38000 | Q42: 0 | R42: 0 | S42: 0
A43: Другие вопросы в области национальной безопасности и правоохранительной деятельности | B43: 0330120220 | C43: 200 | D43: 000 | E43: 0314 | K43: 38000 | L43: 38000 | M43: 0 | N43: 38000 | O43: 0 | P43: 38000 | Q43: 0 | R43: 0 | S43: 0
A44: Создание и оборудование кабинетов наркопрофилактики в образовательных организациях | B44: 0330171690 | C44: 000 | D44: 000 | E44: 0000 | K44: 100000 | L44: 100000 | M44: 0 | N44: 100000 | O44: 0 | P44: 100000 | Q44: 0 | R44: 0 | S44: 0
A45: Предоставление субсидий бюджетным, автономным учреждениям и иным некоммерческим организациям | B45: 0330171690 | C45: 600 | D45: 000 | E45: 0000 | K45: 100000 | L45: 100000 | M45: 0 | N45: 100000 | O45: 0 | P45: 100000 | Q45: 0 | R45: 0 | S45: 0
A46: Другие вопросы в области национальной безопасности и правоохранительной деятельности | B46: 0330171690 | C46: 600 | D46: 000 | E46: 0314 | K46: 100000 | L46: 100000 | M46: 0 | N46: 100000 | O46: 0 | P46: 100000 | Q46: 0 | R46: 0 | S46: 0
A47: Мероприятия по созданию и оборудованию кабинетов наркопрофилактики в образовательных организациях | B47: 03301S1690 | C47: 000 | D47: 000 | E47: 0000 | K47: 15000 | L47: 15000 | M47: 0 | N47: 15000 | O47: 0 | P47: 15000 | Q47: 0 | R47: 0 | S47: 0
A48: Предоставление субсидий бюджетным, автономным учреждениям и иным некоммерческим организациям | B48: 03301S1690 | C48: 600 | D48: 000 | E48: 0000 | K48: 15000 | L48: 15000 | M48: 0 | N48: 15000 | O48: 0 | P48: 15000 | Q48: 0 | R48: 0 | S48: 0
A49: Другие вопросы в области национальной безопасности и правоохранительной деятельности | B49: 03301S1690 | C49: 600 | D49: 000 | E49: 0314 | K49: 15000 | L49: 15000 | M49: 0 | N49: 15000 | O49: 0 | P49: 15000 | Q49: 0 | R49: 0 | S49: 0
A50: Подпрограмма "Комплексные меры противодействия злоупотреблению алкогольной продукцией и профилактика алкоголизма населения на территории ЗАТО г. Радужный Владимирской области" | B50: 0340000000 | C50: 000 | D50: 000 | E50: 0000 | K50: 25000 | L50: 25000 | M50: 0 | N50: 25000 | O50: 0 | P50: 25000 | Q50: 0 | R50: 0 | S50: 0
A51: Основное мероприятие "Профилактика злоупотребления алкогольной продукцией" | B51: 0340100000 | C51: 000 | D51: 000 | E51: 0000 | K51: 25000 | L51: 25000 | M51: 0 | N51: 25000 | O51: 0 | P51: 25000 | Q51: 0 | R51: 0 | S51: 0
A52: Мероприятия, направленные на повышение эффективности профилактики злоупотребления алкогольной продукцией | B52: 0340120220 | C52: 000 | D52: 000 | E52: 0000 | K52: 20000 | L52: 20000 | M52: 0 | N52: 20000 | O52: 0 | P52: 20000 | Q52: 0 | R52: 0 | S52: 0
A53: Закупка товаров, работ и услуг для обеспечения государственных (муниципальных) нужд | B53: 0340120220 | C53: 200 | D53: 000 | E53: 0000 | K53: 20000 | L53: 20000 | M53: 0 | N53: 20000 | O53: 0 | P53: 20000 | Q53: 0 | R53: 0 | S53: 0
A54: Другие вопросы в области национальной безопасности и правоохранительной деятельности | B54: 0340120220 | C54: 200 | D54: 000 | E54: 0314 | K54: 20000 | L54: 20000 | M54: 0 | N54: 20000 | O54: 0 | P54: 20000 | Q54: 0 | R54: 0 | S54: 0
A55: Приобретение специализированной литературы по пропаганде здорового образа жизни, профилактике алкоголизации населения (МБУК "Общедоступная библиотека") | B55: 034012Ю220 | C55: 000 | D55: 000 | E55: 0000 | K55: 5000 | L55: 5000 | M55: 0 | N55: 5000 | O55: 0 | P55: 5000 | Q55: 0 | R55: 0 | S55: 0
A56: Предоставление субсидий бюджетным, автономным учреждениям и иным некоммерческим организациям | B56: 034012Ю220 | C56: 600 | D56: 000 | E56: 0000 | K56: 5000 | L56: 5000 | M56: 0 | N56: 5000 | O56: 0 | P56: 5000 | Q56: 0 | R56: 0 | S56: 0
A57: Другие вопросы в области национальной безопасности и правоохранительной деятельности | B57: 034012Ю220 | C57: 600 | D57: 000 | E57: 0314 | K57: 5000 | L57: 5000 | M57: 0 | N57: 5000 | O57: 0 | P57: 5000 | Q57: 0 | R57: 0 | S57: 0
A58: Подпрограмма "Противодействие терроризму и экстремизму на территории ЗАТО г. Радужный Владимирской области" | B58: 0350000000 | C58: 000 | D58: 000 | E58: 0000 | K58: 3000 | L58: 3000 | M58: 0 | N58: 3000 | O58: 0 | P58: 3000 | Q58: 0 | R58: 0 | S58: 0
A59: Основное мероприятие "Профилактика экстремизма и терроризма на территории ЗАТО г.Радужный Владимирской области" | B59: 0350100000 | C59: 000 | D59: 000 | E59: 0000 | K59: 3000 | L59: 3000 | M59: 0 | N59: 3000 | O59: 0 | P59: 3000 | Q59: 0 | R59: 0 | S59: 0
A60: Мероприятия, направленные на предупреждение (профилактику) терроризма и экстремизма среди подростков и молодежи | B60: 0350120220 | C60: 000 | D60: 000 | E60: 0000 | K60: 3000 | L60: 3000 | M60: 0 | N60: 3000 | O60: 0 | P60: 3000 | Q60: 0 | R60: 0 | S60: 0
A61: Закупка товаров, работ и услуг для обеспечения государственных (муниципальных) нужд | B61: 0350120220 | C61: 200 | D61: 000 | E61: 0000 | K61: 3000 | L61: 3000 | M61: 0 | N61: 3000 | O61: 0 | P61: 3000 | Q61: 0 | R61: 0 | S61: 0
A62: Другие вопросы в области национальной безопасности и правоохранительной деятельности | B62: 0350120220 | C62: 200 | D62: 000 | E62: 0314 | K62: 3000 | L62: 3000 | M62: 0 | N62: 3000 | O62: 0 | P62: 3000 | Q62: 0 | R62: 0 | S62: 0
A63: Муниципальная программа "Землеустройство, использование и охрана земель, оценка недвижимости, признание прав и регулирование отношений по муниципальной собственности ЗАТО г.Радужный Владимирской области" | B63: 0400000000 | C63: 000 | D63: 000 | E63: 0000 | K63: 640000 | L63: 640000 | M63: 0 | N63: 640000 | O63: 0 | P63: 640000 | Q63: 0 | R63: 640000 | S63: 640000
A64: Подпрограмма "Землеустройство, использование и охрана земель на территории ЗАТО г.Радужный Владимирской области" | B64: 0410000000 | C64: 000 | D64: 000 | E64: 0000 | K64: 500000 | L64: 500000 | M64: 0 | N64: 500000 | O64: 0 | P64: 500000 | Q64: 0 | R64: 500000 | S64: 500000
A65: Основное мероприятие "Мероприятия по землеустройству и землепользованию на территории ЗАТО г.Радужный Владимирской области | B65: 0410100000 | C65: 000 | D65: 000 | E65: 0000 | K65: 500000 | L65: 500000 | M65: 0 | N65: 500000 | O65: 0 | P65: 500000 | Q65: 0 | R65: 500000 | S65: 500000
A66: Мероприятия, направленные на совершенствование учета земельных участков, покрытие территории картографическими материалами | B66: 0410120220 | C66: 000 | D66: 000 | E66: 0000 | K66: 500000 | L66: 500000 | M66: 0 | N66: 500000 | O66: 0 | P66: 500000 | Q66: 0 | R66: 500000 | S66: 500000
A67: Закупка товаров, работ и услуг для обеспечения государственных (муниципальных) нужд | B67: 0410120220 | C67: 200 | D67: 000 | E67: 0000 | K67: 500000 | L67: 500000 | M67: 0 | N67: 500000 | O67: 0 | P67: 500000 | Q67: 0 | R67: 500000 | S67: 500000
A68: Другие вопросы в области национальной экономики | B68: 0410120220 | C68: 200 | D68: 000 | E68: 0412 | K68: 500000 | L68: 500000 | M68: 0 | N68: 500000 | O68: 0 | P68: 500000 | Q68: 0 | R68: 500000 | S68: 500000
A69: Подпрограмма "Оценка недвижимости, признание прав и регулирование отношений по муниципальной собственности ЗАТО г.Радужный Владимирской области" | B69: 0420000000 | C69: 000 | D69: 000 | E69: 0000 | K69: 140000 | L69: 140000 | M69: 0 | N69: 140000 | O69: 0 | P69: 140000 | Q69: 0 | R69: 140000 | S69: 140000
A70: Основное мероприятие "Оценка недвижимости, признание прав и регулирование отношений по муниципальной собственности ЗАТО г.Радужный Владимирской области" | B70: 0420100000 | C70: 000 | D70: 000 | E70: 0000 | K70: 140000 | L70: 140000 | M70: 0 | N70: 140000 | O70: 0 | P70: 140000 | Q70: 0 | R70: 140000 | S70: 140000
A71: Мероприятия, направленные на обеспечение защиты имущественных прав муниципального образования ЗАТО г.Радужный на объекты недвижимости | B71: 0420120220 | C71: 000 | D71: 000 | E71: 0000 | K71: 140000 | L71: 140000 | M71: 0 | N71: 140000 | O71: 0 | P71: 140000 | Q71: 0 | R71: 140000 | S71: 140000
A72: Закупка товаров, работ и услуг для обеспечения государственных (муниципальных) нужд | B72: 0420120220 | C72: 200 | D72: 000 | E72: 0000 | K72: 140000 | L72: 140000 | M72: 0 | N72: 140000 | O72: 0 | P72: 140000 | Q72: 0 | R72: 140000 | S72: 140000
A73: Другие общегосударственные вопросы | B73: 0420120220 | C73: 200 | D73: 000 | E73: 0113 | K73: 140000 | L73: 140000 | M73: 0 | N73: 140000 | O73: 0 | P73: 140000 | Q73: 0 | R73: 140000 | S73: 140000
A74: Муниципальная программа "Информатизация ЗАТО г.Радужный Владимирской области | B74: 0500000000 | C74: 000 | D74: 000 | E74: 0000 | K74: 2438980 | L74: 2438980 | M74: 0 | N74: 2438980 | O74: 0 | P74: 2438980 | Q74: 0 | R74: 1787572 | S74: 1788562
A75: Основное мероприятие "Обеспечение предоставления гражданам и организациям услуг с использованием современных информационных и телекоммуникационных технологий" | B75: 0500100000 | C75: 000 | D75: 000 | E75: 0000 | K75: 97000 | L75: 97000 | M75: 0 | N75: 97000 | O75: 0 | P75: 97000 | Q75: 0 | R75: 97000 | S75: 97000
A76: Развитие и обеспечение функционирования муниципального сегмента СМЭВ, взаимодействие с ГИС ГМП | B76: 0500120220 | C76: 000 | D76: 000 | E76: 0000 | K76: 97000 | L76: 97000 | M76: 0 | N76: 97000 | O76: 0 | P76: 97000 | Q76: 0 | R76: 97000 | S76: 97000
A77: Закупка товаров, работ и услуг для обеспечения государственных (муниципальных) нужд | B77: 0500120220 | C77: 200 | D77: 000 | E77: 0000 | K77: 97000 | L77: 97000 | M77: 0 | N77: 97000 | O77: 0 | P77: 97000 | Q77: 0 | R77: 97000 | S77: 97000
A78: Связь и информатика | B78: 0500120220 | C78: 200 | D78: 000 | E78: 0410 | K78: 97000 | L78: 97000 | M78: 0 | N78: 97000 | O78: 0 | P78: 97000 | Q78: 0 | R78: 97000 | S78: 97000
A79: Основное мероприятие "Предоставление гражданам и организациям информации о деятельности органов местного самоуправления с использованием информационных и телекоммуникационных технологий" | B79: 0500200000 | C79: 000 | D79: 000 | E79: 0000 | K79: 594000 | L79: 594000 | M79: 0 | N79: 594000 | O79: 0 | P79: 594000 | Q79: 0 | R79: 293750 | S79: 293750
A80: Развитие и техническая поддержка официального сайта органов местного самоуправления | B80: 0500220220 | C80: 000 | D80: 000 | E80: 0000 | K80: 594000 | L80: 594000 | M80: 0 | N80: 594000 | O80: 0 | P80: 594000 | Q80: 0 | R80: 293750 | S80: 293750
A81: Закупка товаров, работ и услуг для обеспечения государственных (муниципальных) нужд | B81: 0500220220 | C81: 200 | D81: 000 | E81: 0000 | K81: 594000 | L81: 594000 | M81: 0 | N81: 594000 | O81: 0 | P81: 594000 | Q81: 0 | R81: 293750 | S81: 293750
A82: Связь и информатика | B82: 0500220220 | C82: 200 | D82: 000 | E82: 0410 | K82: 594000 | L82: 594000 | M82: 0 | N82: 594000 | O82: 0 | P82: 594000 | Q82: 0 | R82: 293750 | S82: 293750
A83: Основное мероприятие "Развитие технической и технологической основы становления информационного общества" | B83: 0500300000 | C83: 000 | D83: 000 | E83: 0000 | K83: 1666180 | L83: 1666180 | M83: 0 | N83: 1666180 | O83: 0 | P83: 1666180 | Q83: 0 | R83: 1315022 | S83: 1316012
A84: Обеспечение структурных подразделений администрации средствами связи, лицензионными версиями общесистемного и прикладного программного обеспечения, доступом к информационно-справочным правовым системам | B84: 0500320220 | C84: 000 | D84: 000 | E84: 0000 | K84: 1666180 | L84: 1666180 | M84: 0 | N84: 1666180 | O84: 0 | P84: 1666180 | Q84: 0 | R84: 1315022 | S84: 1316012
A85: Закупка товаров, работ и услуг для обеспечения государственных (муниципальных) нужд | B85: 0500320220 | C85: 200 | D85: 000 | E85: 0000 | K85: 1666180 | L85: 1666180 | M85: 0 | N85: 1666180 | O85: 0 | P85: 1666180 | Q85: 0 | R85: 1315022 | S85: 1316012
A86: Связь и информатика | B86: 0500320220 | C86: 200 | D86: 000 | E86: 0410 | K86: 1666180 | L86: 1666180 | M86: 0 | N86: 1666180 | O86: 0 | P86: 1666180 | Q86: 0 | R86: 1315022 | S86: 1316012
A87: Основное мероприятие "Предупреждение угроз, возникающих в информационном обществе" | B87: 0500400000 | C87: 000 | D87: 000 | E87: 0000 | K87: 81800 | L87: 81800 | M87: 0 | N87: 81800 | O87: 0 | P87: 81800 | Q87: 0 | R87: 81800 | S87: 81800
A88: Приобретение программного обеспечения и оборудования для обеспечения информационной безопасности, аттестации информационных систем и автоматизированных рабочих мест | B88: 0500420220 | C88: 000 | D88: 000 | E88: 0000 | K88: 81800 | L88: 81800 | M88: 0 | N88: 81800 | O88: 0 | P88: 81800 | Q88: 0 | R88: 81800 | S88: 81800
A89: Закупка товаров, работ и услуг для обеспечения государственных (муниципальных) нужд | B89: 0500420220 | C89: 200 | D89: 000 | E89: 0000 | K89: 81800 | L89: 81800 | M89: 0 | N89: 81800 | O89: 0 | P89: 81800 | Q89: 0 | R89: 81800 | S89: 81800
A90: Связь и информатика | B90: 0500420220 | C90: 200 | D90: 000 | E90: 0410 | K90: 81800 | L90: 81800 | M90: 0 | N90: 81800 | O90: 0 | P90: 81800 | Q90: 0 | R90: 81800 | S90: 81800
A91: Муниципальная программа "Перспективное развитие и совершенствование гражданской обороны, защита населения и территории, обеспечение пожарной безопасности и безопасности людей на водных объектах ЗАТО г. Радужный Владимирской области" | B91: 0600000000 | C91: 000 | D91: 000 | E91: 0000 | K91: 33519465 | L91: 33519465 | M91: 0 | N91: 33519465 | O91: 0 | P91: 33519465 | Q91: 0 | R91: 21315927 | S91: 12131941
A92: Подпрограмма "Совершенствование гражданской обороны, защита населения и территории, обеспечение пожарной безопасности и безопасности людей на водных объектах ЗАТО г.Радужный Владимирской области" | B92: 0610000000 | C92: 000 | D92: 000 | E92: 0000 | K92: 33018265 | L92: 33018265 | M92: 0 | N92: 33018265 | O92: 0 | P92: 33018265 | Q92: 0 | R92: 20814727 | S92: 11630741
A93: Основное мероприятие "Совершенствование и развитие гражданской обороны, защиты населения и территории, обеспечение пожарной безопасности и безопасности людей на водных объектах" | B93: 0610100000 | C93: 000 | D93: 000 | E93: 0000 | K93: 131700 | L93: 131700 | M93: 0 | N93: 131700 | O93: 0 | P93: 131700 | Q93: 0 | R93: 131700 | S93: 131700
A94: Мероприятия, направленные на повышение качества защиты населения и территории города от возможных ЧС природного, техногенного и террористического характера, организации управления силами и средствами городского звена РСЧС и ГО ЗАТО г. Радужный | B94: 0610120220 | C94: 000 | D94: 000 | E94: 0000 | K94: 131700 | L94: 131700 | M94: 0 | N94: 131700 | O94: 0 | P94: 131700 | Q94: 0 | R94: 131700 | S94: 131700
A95: Закупка товаров, работ и услуг для обеспечения государственных (муниципальных) нужд | B95: 0610120220 | C95: 200 | D95: 000 | E95: 0000 | K95: 131700 | L95: 131700 | M95: 0 | N95: 131700 | O95: 0 | P95: 131700 | Q95: 0 | R95: 131700 | S95: 131700
A96: Защита населения и территории от чрезвычайных ситуаций природного и техногенного характера, гражданская оборона | B96: 0610120220 | C96: 200 | D96: 000 | E96: 0309 | K96: 131700 | L96: 131700 | M96: 0 | N96: 131700 | O96: 0 | P96: 131700 | Q96: 0 | R96: 131700 | S96: 131700
A97: Основное мероприятие "Организация работ по недопущению и ликвидации чрезвычайных ситуаций" | B97: 0610200000 | C97: 000 | D97: 000 | E97: 0000 | K97: 10023065 | L97: 10023065 | M97: 0 | N97: 10023065 | O97: 0 | P97: 10023065 | Q97: 0 | R97: 6060000 | S97: 6060000
A98: Мероприятия, направленные на недопущение и ликвидацию ЧС на территории ЗАТО г. Радужный, обеспечение формирований ГО и городского звена РСЧС необходимыми материалами из резерва материальных ресурсов для предупреждения ЧС и ликвидации их последствий | B98: 0610220220 | C98: 000 | D98: 000 | E98: 0000 | K98: 6060000 | L98: 6060000 | M98: 0 | N98: 6060000 | O98: 0 | P98: 6060000 | Q98: 0 | R98: 6060000 | S98: 6060000
A99: Закупка товаров, работ и услуг для обеспечения государственных (муниципальных) нужд | B99: 0610220220 | C99: 200 | D99: 000 | E99: 0000 | K99: 6060000 | L99: 6060000 | M99: 0 | N99: 6060000 | O99: 0 | P99: 6060000 | Q99: 0 | R99: 6060000 | S99: 6060000
A100: Защита населения и территории от чрезвычайных ситуаций природного и техногенного характера, гражданская оборона | B100: 0610220220 | C100: 200 | D100: 000 | E100: 0309 | K100: 6060000 | L100: 6060000 | M100: 0 | N100: 6060000 | O100: 0 | P100: 6060000 | Q100: 0 | R100: 6060000 | S100: 6060000
A101: Субсидии на возмещение расходов предприятиям, привлекаемым для обеспечения санитарно-эпидемиологического благополучия населения для недопущения распространения новой коронавирусной инфекции на территории ЗАТО г.Радужный Владимирской области | B101: 0610260005 | C101: 000 | D101: 000 | E101: 0000 | K101: 3963065 | L101: 3963065 | M101: 0 | N101: 3963065 | O101: 0 | P101: 3963065 | Q101: 0 | R101: 0 | S101: 0
A102: Иные бюджетные ассигнования | B102: 0610260005 | C102: 800 | D102: 000 | E102: 0000 | K102: 3963065 | L102: 3963065 | M102: 0 | N102: 3963065 | O102: 0 | P102: 3963065 | Q102: 0 | R102: 0 | S102: 0
A103: Защита населения и территории от чрезвычайных ситуаций природного и техногенного характера, гражданская оборона | B103: 0610260005 | C103: 800 | D103: 000 | E103: 0309 | K103: 3963065 | L103: 3963065 | M103: 0 | N103: 3963065 | O103: 0 | P103: 3963065 | Q103: 0 | R103: 0 | S103: 0
A104: Основное мероприятие "Организация мероприятий по гражданской обороне" | B104: 0610300000 | C104: 000 | D104: 000 | E104: 0000 | K104: 2863500 | L104: 2863500 | M104: 0 | N104: 2863500 | O104: 0 | P104: 2863500 | Q104: 0 | R104: 2863500 | S104: 2863500
A105: Финансирование деятельности муниципальных учреждений, обеспечивающих выполнение мероприятий в области гражданской обороны, защиты населения и территорий от чрезвычайных ситуаций, обеспечения пожарной безопасности и безопасности людей на водных объектах на территории ЗАТО г. Радужный в пределах установленных полномочий | B105: 0610300590 | C105: 000 | D105: 000 | E105: 0000 | K105: 2863500 | L105: 2863500 | M105: 0 | N105: 2863500 | O105: 0 | P105: 2863500 | Q105: 0 | R105: 2863500 | S105: 2863500
A106: Расходы на выплаты персоналу в целях обеспечения выполнения функций государственными (муниципальными) органами, казенными учреждениями, органами управления государственными внебюджетными фондами | B106: 0610300590 | C106: 100 | D106: 000 | E106: 0000 | K106: 2393600 | L106: 2393600 | M106: 0 | N106: 2393600 | O106: 0 | P106: 2393600 | Q106: 0 | R106: 2393600 | S106: 2393600
A107: Защита населения и территории от чрезвычайных ситуаций природного и техногенного характера, гражданская оборона | B107: 0610300590 | C107: 100 | D107: 000 | E107: 0309 | K107: 2393600 | L107: 2393600 | M107: 0 | N107: 2393600 | O107: 0 | P107: 2393600 | Q107: 0 | R107: 2393600 | S107: 2393600
A108: Закупка товаров, работ и услуг для обеспечения государственных (муниципальных) нужд | B108: 0610300590 | C108: 200 | D108: 000 | E108: 0000 | K108: 469900 | L108: 469900 | M108: 0 | N108: 469900 | O108: 0 | P108: 469900 | Q108: 0 | R108: 469900 | S108: 469900
A109: Защита населения и территории от чрезвычайных ситуаций природного и техногенного характера, гражданская оборона | B109: 0610300590 | C109: 200 | D109: 000 | E109: 0309 | K109: 469900 | L109: 469900 | M109: 0 | N109: 469900 | O109: 0 | P109: 469900 | Q109: 0 | R109: 469900 | S109: 469900
A110: Основное мероприятие "Создание и использование финансового резерва для выполнения мероприятий городского значения по ликвидации аварийных ситуаций и ЧС, возникающих в системах жизнеобеспечения города и сбоев подачи энергоресурсов для населения города" | B110: 0610400000 | C110: 000 | D110: 000 | E110: 0000 | K110: 20000000 | L110: 20000000 | M110: 0 | N110: 20000000 | O110: 0 | P110: 20000000 | Q110: 0 | R110: 11759527 | S110: 2575541
A111: Мероприятия по предупреждению и ликвидации аварийных ситуаций в системах жизнеобеспечения города и сбоев подачи энергоресурсов для населения города | B111: 0610420220 | C111: 000 | D111: 000 | E111: 0000 | K111: 20000000 | L111: 20000000 | M111: 0 | N111: 20000000 | O111: 0 | P111: 20000000 | Q111: 0 | R111: 11759527 | S111: 2575541
A112: Иные бюджетные ассигнования | B112: 0610420220 | C112: 800 | D112: 000 | E112: 0000 | K112: 20000000 | L112: 20000000 | M112: 0 | N112: 20000000 | O112: 0 | P112: 20000000 | Q112: 0 | R112: 11759527 | S112: 2575541
A113: Защита населения и территории от чрезвычайных ситуаций природного и техногенного характера, гражданская оборона | B113: 0610420220 | C113: 800 | D113: 000 | E113: 0309 | K113: 20000000 | L113: 20000000 | M113: 0 | N113: 20000000 | O113: 0 | P113: 20000000 | Q113: 0 | R113: 11759527 | S113: 2575541
A114: Подпрограмма "Безопасный город" | B114: 0620000000 | C114: 000 | D114: 000 | E114: 0000 | K114: 501200 | L114: 501200 | M114: 0 | N114: 501200 | O114: 0 | P114: 501200 | Q114: 0 | R114: 501200 | S114: 501200
A115: Основное мероприятие "Внедрение и развитие аппаратно-программного комплекса "Безопасный город" | B115: 0620100000 | C115: 000 | D115: 000 | E115: 0000 | K115: 501200 | L115: 501200 | M115: 0 | N115: 501200 | O115: 0 | P115: 501200 | Q115: 0 | R115: 501200 | S115: 501200
A116: Мероприятия, направленные на внедрения на базе муниципального образования комплексной информационной системы, обеспечивающей прогнозирование, мониторинг, предупреждение и ликвидацию возможных угроз | B116: 0620120220 | C116: 000 | D116: 000 | E116: 0000 | K116: 501200 | L116: 501200 | M116: 0 | N116: 501200 | O116: 0 | P116: 501200 | Q116: 0 | R116: 501200 | S116: 501200
A117: Закупка товаров, работ и услуг для обеспечения государственных (муниципальных) нужд | B117: 0620120220 | C117: 200 | D117: 000 | E117: 0000 | K117: 501200 | L117: 501200 | M117: 0 | N117: 501200 | O117: 0 | P117: 501200 | Q117: 0 | R117: 501200 | S117: 501200
A118: Защита населения и территории от чрезвычайных ситуаций природного и техногенного характера, гражданская оборона | B118: 0620120220 | C118: 200 | D118: 000 | E118: 0309 | K118: 501200 | L118: 501200 | M118: 0 | N118: 501200 | O118: 0 | P118: 501200 | Q118: 0 | R118: 501200 | S118: 501200
A119: Муниципальная программа "Обеспечение доступным и комфортным жильем населения ЗАТО г.Радужный Владимирской области" | B119: 0700000000 | C119: 000 | D119: 000 | E119: 0000 | K119: 2489162 | L119: 2489162 | M119: 0 | N119: 2489162 | O119: 0 | P119: 2489162 | Q119: 0 | R119: 408510 | S119: 145162510
A120: Подпрограмма "Обеспечение жильем многодетных семей ЗАТО г.Радужный" | B120: 0730000000 | C120: 000 | D120: 000 | E120: 0000 | K120: 1264262 | L120: 1264262 | M120: 0 | N120: 1264262 | O120: 0 | P120: 1264262 | Q120: 0 | R120: 408510 | S120: 408510
A121: Основное мероприятие "Предоставление многодетным семьям социальных выплат на приобретение жилья" | B121: 0730100000 | C121: 000 | D121: 000 | E121: 0000 | K121: 1264262 | L121: 1264262 | M121: 0 | N121: 1264262 | O121: 0 | P121: 1264262 | Q121: 0 | R121: 408510 | S121: 408510
A122: Обеспечение жильем многодетных семей | B122: 0730170810 | C122: 000 | D122: 000 | E122: 0000 | K122: 1206100 | L122: 1206100 | M122: 0 | N122: 1206100 | O122: 0 | P122: 1206100 | Q122: 0 | R122: 389200 | S122: 389200
A123: Социальное обеспечение и иные выплаты населению | B123: 0730170810 | C123: 300 | D123: 000 | E123: 0000 | K123: 1206100 | L123: 1206100 | M123: 0 | N123: 1206100 | O123: 0 | P123: 1206100 | Q123: 0 | R123: 389200 | S123: 389200
A124: Социальное обеспечение населения | B124: 0730170810 | C124: 300 | D124: 000 | E124: 1003 | K124: 1206100 | L124: 1206100 | M124: 0 | N124: 1206100 | O124: 0 | P124: 1206100 | Q124: 0 | R124: 389200 | S124: 389200
A125: Обеспечение жильем многодетных семей | B125: 07301S0810 | C125: 000 | D125: 000 | E125: 0000 | K125: 58162 | L125: 58162 | M125: 0 | N125: 58162 | O125: 0 | P125: 58162 | Q125: 0 | R125: 19310 | S125: 19310
A126: Социальное обеспечение и иные выплаты населению | B126: 07301S0810 | C126: 300 | D126: 000 | E126: 0000 | K126: 58162 | L126: 58162 | M126: 0 | N126: 58162 | O126: 0 | P126: 58162 | Q126: 0 | R126: 19310 | S126: 19310
A127: Социальное обеспечение населения | B127: 07301S0810 | C127: 300 | D127: 000 | E127: 1003 | K127: 58162 | L127: 58162 | M127: 0 | N127: 58162 | O127: 0 | P127: 58162 | Q127: 0 | R127: 19310 | S127: 19310
A128: Подпрограмма "Социальное жилье ЗАТО г.Радужный" | B128: 0750000000 | C128: 000 | D128: 000 | E128: 0000 | K128: 0 | L128: 0 | M128: 0 | N128: 0 | O128: 0 | P128: 0 | Q128: 0 | R128: 0 | S128: 144754000
A129: Основное мероприятие "Строительство жилья" | B129: 0750100000 | C129: 000 | D129: 000 | E129: 0000 | K129: 0 | L129: 0 | M129: 0 | N129: 0 | O129: 0 | P129: 0 | Q129: 0 | R129: 0 | S129: 144754000
A130: Строительство социального жилья и приобретение жилых помещений для граждан, нуждающихся в улучшении жилищных условий (строительство многоквартирного дома в 9 квартале) | B130: 0750170090 | C130: 000 | D130: 000 | E130: 0000 | K130: 0 | L130: 0 | M130: 0 | N130: 0 | O130: 0 | P130: 0 | Q130: 0 | R130: 0 | S130: 144754000
A131: Капитальные вложения в объекты государственной (муниципальной) собственности | B131: 0750170090 | C131: 400 | D131: 000 | E131: 0000 | K131: 0 | L131: 0 | M131: 0 | N131: 0 | O131: 0 | P131: 0 | Q131: 0 | R131: 0 | S131: 144754000
A132: Жилищное хозяйство | B132: 0750170090 | C132: 400 | D132: 000 | E132: 0501 | K132: 0 | L132: 0 | M132: 0 | N132: 0 | O132: 0 | P132: 0 | Q132: 0 | R132: 0 | S132: 144754000
A133: Подпрограмма "Обеспечение жильем молодых семей ЗАТО г.Радужный" | B133: 0760000000 | C133: 000 | D133: 000 | E133: 0000 | K133: 1224900 | L133: 1224900 | M133: 0 | N133: 1224900 | O133: 0 | P133: 1224900 | Q133: 0 | R133: 0 | S133: 0
A134: Основное мероприятие "Предоставление молодым семьям социальных выплат на приобретение жилья" | B134: 0760100000 | C134: 000 | D134: 000 | E134: 0000 | K134: 1224900 | L134: 1224900 | M134: 0 | N134: 1224900 | O134: 0 | P134: 1224900 | Q134: 0 | R134: 0 | S134: 0
A135: Реализация мероприятий по обеспечению жильем молодых семей | B135: 07601L4970 | C135: 000 | D135: 000 | E135: 0000 | K135: 180000 | L135: 180000 | M135: 0 | N135: 180000 | O135: 0 | P135: 180000 | Q135: 0 | R135: 0 | S135: 0
A136: Социальное обеспечение и иные выплаты населению | B136: 07601L4970 | C136: 300 | D136: 000 | E136: 0000 | K136: 180000 | L136: 180000 | M136: 0 | N136: 180000 | O136: 0 | P136: 180000 | Q136: 0 | R136: 0 | S136: 0
A137: Охрана семьи и детства | B137: 07601L4970 | C137: 300 | D137: 000 | E137: 1004 | K137: 180000 | L137: 180000 | M137: 0 | N137: 180000 | O137: 0 | P137: 180000 | Q137: 0 | R137: 0 | S137: 0
A138: Реализация мероприятий по обеспечению жильем молодых семей | B138: 07601R4970 | C138: 000 | D138: 000 | E138: 0000 | K138: 1044900 | L138: 1044900 | M138: 0 | N138: 1044900 | O138: 0 | P138: 1044900 | Q138: 0 | R138: 0 | S138: 0
A139: Социальное обеспечение и иные выплаты населению | B139: 07601R4970 | C139: 300 | D139: 000 | E139: 0000 | K139: 1044900 | L139: 1044900 | M139: 0 | N139: 1044900 | O139: 0 | P139: 1044900 | Q139: 0 | R139: 0 | S139: 0
A140: Охрана семьи и детства | B140: 07601R4970 | C140: 300 | D140: 000 | E140: 1004 | K140: 1044900 | L140: 1044900 | M140: 0 | N140: 1044900 | O140: 0 | P140: 1044900 | Q140: 0 | R140: 0 | S140: 0
A141: Муниципальная программа "Энергосбережение и повышение надежности энергоснабжения в топливно-энергетическом комплексе ЗАТО г. Радужный Владимирской области" | B141: 0800000000 | C141: 000 | D141: 000 | E141: 0000 | K141: 14302000 | L141: 14302000 | M141: 0 | N141: 14302000 | O141: 0 | P141: 14302000 | Q141: 0 | R141: 14302000 | S141: 6032250
A142: Основное мероприятие "Мероприятия в целях реализации концессионных соглашений от 17.09.2015 № 2015-01-ТС и № 2015-02-ВС" | B142: 0800400000 | C142: 000 | D142: 000 | E142: 0000 | K142: 14302000 | L142: 14302000 | M142: 0 | N142: 14302000 | O142: 0 | P142: 14302000 | Q142: 0 | R142: 14302000 | S142: 6032250
A143: Субсидии, предоставляемые ЗАО "Радугаэнерго", на финансирование расходов на капитальный ремонт объектов, входящих в единую закрытую систему теплоснабжения на территории ЗАТО г.Радужный Владимирской области | B143: 0800460001 | C143: 000 | D143: 000 | E143: 0000 | K143: 9170000 | L143: 9170000 | M143: 0 | N143: 9170000 | O143: 0 | P143: 9170000 | Q143: 0 | R143: 9170000 | S143: 3860560
A144: Иные бюджетные ассигнования | B144: 0800460001 | C144: 800 | D144: 000 | E144: 0000 | K144: 9170000 | L144: 9170000 | M144: 0 | N144: 9170000 | O144: 0 | P144: 9170000 | Q144: 0 | R144: 9170000 | S144: 3860560
A145: Коммунальное хозяйство | B145: 0800460001 | C145: 800 | D145: 000 | E145: 0502 | K145: 9170000 | L145: 9170000 | M145: 0 | N145: 9170000 | O145: 0 | P145: 9170000 | Q145: 0 | R145: 9170000 | S145: 3860560
A146: Субсидии, предоставляемые ЗАО "Радугаэнерго", на финансирование расходов на капитальный ремонт объектов, входящих в централизованную систему водоснабжения на территории ЗАТО г. Радужный Владимирской области | B146: 0800460002 | C146: 000 | D146: 000 | E146: 0000 | K146: 5132000 | L146: 5132000 | M146: 0 | N146: 5132000 | O146: 0 | P146: 5132000 | Q146: 0 | R146: 5132000 | S146: 2171690
A147: Иные бюджетные ассигнования | B147: 0800460002 | C147: 800 | D147: 000 | E147: 0000 | K147: 5132000 | L147: 5132000 | M147: 0 | N147: 5132000 | O147: 0 | P147: 5132000 | Q147: 0 | R147: 5132000 | S147: 2171690
A148: Коммунальное хозяйство | B148: 0800460002 | C148: 800 | D148: 000 | E148: 0502 | K148: 5132000 | L148: 5132000 | M148: 0 | N148: 5132000 | O148: 0 | P148: 5132000 | Q148: 0 | R148: 5132000 | S148: 2171690
A149: Муниципальная программа "Жилищно-коммунальный комплекс ЗАТО г.Радужный Владимирской области" | B149: 0900000000 | C149: 000 | D149: 000 | E149: 0000 | K149: 31651662 | L149: 31651662 | M149: 0 | N149: 31651662 | O149: 0 | P149: 31651662 | Q149: 0 | R149: 30951987 | S149: 30951987
A150: Подпрограмма "Развитие жилищно-коммунального комплекса ЗАТО г.Радужный Владимирской области" | B150: 0910000000 | C150: 000 | D150: 000 | E150: 0000 | K150: 31651662 | L150: 31651662 | M150: 0 | N150: 31651662 | O150: 0 | P150: 31651662 | Q150: 0 | R150: 30951987 | S150: 30951987
A151: Основное мероприятие "Содержание, обслуживание, ремонт, модернизация объектов жилого фонда" | B151: 0910100000 | C151: 000 | D151: 000 | E151: 0000 | K151: 2180000 | L151: 2180000 | M151: 0 | N151: 2180000 | O151: 0 | P151: 2180000 | Q151: 0 | R151: 180000 | S151: 180000
A152: Обслуживание объектов муниципального жилищного фонда, в том числе взносы на ремонт общего имущества многоквартирных домов в части муниципального жилья | B152: 0910120220 | C152: 000 | D152: 000 | E152: 0000 | K152: 2000000 | L152: 2000000 | M152: 0 | N152: 2000000 | O152: 0 | P152: 2000000 | Q152: 0 | R152: 0 | S152: 0
A153: Закупка товаров, работ и услуг для обеспечения государственных (муниципальных) нужд | B153: 0910120220 | C153: 200 | D153: 000 | E153: 0000 | K153: 2000000 | L153: 2000000 | M153: 0 | N153: 2000000 | O153: 0 | P153: 2000000 | Q153: 0 | R153: 0 | S153: 0
A154: Жилищное хозяйство | B154: 0910120220 | C154: 200 | D154: 000 | E154: 0501 | K154: 2000000 | L154: 2000000 | M154: 0 | N154: 2000000 | O154: 0 | P154: 2000000 | Q154: 0 | R154: 0 | S154: 0
A155: Обслуживание объектов муниципального жилищного фонда в части обеспечения пожарной безопасности | B155: 0910120221 | C155: 000 | D155: 000 | E155: 0000 | K155: 180000 | L155: 180000 | M155: 0 | N155: 180000 | O155: 0 | P155: 180000 | Q155: 0 | R155: 180000 | S155: 180000
A156: Закупка товаров, работ и услуг для обеспечения государственных (муниципальных) нужд | B156: 0910120221 | C156: 200 | D156: 000 | E156: 0000 | K156: 180000 | L156: 180000 | M156: 0 | N156: 180000 | O156: 0 | P156: 180000 | Q156: 0 | R156: 180000 | S156: 180000
A157: Жилищное хозяйство | B157: 0910120221 | C157: 200 | D157: 000 | E157: 0501 | K157: 180000 | L157: 180000 | M157: 0 | N157: 180000 | O157: 0 | P157: 180000 | Q157: 0 | R157: 180000 | S157: 180000
A158: Основное мероприятие "Обслуживание, содержание, ремонт, модернизация объектов коммунального хозяйства" | B158: 0910200000 | C158: 000 | D158: 000 | E158: 0000 | K158: 648900 | L158: 648900 | M158: 0 | N158: 648900 | O158: 0 | P158: 648900 | Q158: 0 | R158: 648900 | S158: 648900
A159: Обслуживание, периодическая поверка, ремонт и диспетчеризация работы узлов учета тепловой энергии и воды на вводах в город и на объектах социально-культурного назначения | B159: 0910220220 | C159: 000 | D159: 000 | E159: 0000 | K159: 648900 | L159: 648900 | M159: 0 | N159: 648900 | O159: 0 | P159: 648900 | Q159: 0 | R159: 648900 | S159: 648900
A160: Закупка товаров, работ и услуг для обеспечения государственных (муниципальных) нужд | B160: 0910220220 | C160: 200 | D160: 000 | E160: 0000 | K160: 648900 | L160: 648900 | M160: 0 | N160: 648900 | O160: 0 | P160: 648900 | Q160: 0 | R160: 648900 | S160: 648900
A161: Коммунальное хозяйство | B161: 0910220220 | C161: 200 | D161: 000 | E161: 0502 | K161: 648900 | L161: 648900 | M161: 0 | N161: 648900 | O161: 0 | P161: 648900 | Q161: 0 | R161: 648900 | S161: 648900
A162: Основное мероприятие "Предупреждение чрезвычайных ситуаций на территории города" | B162: 0910400000 | C162: 000 | D162: 000 | E162: 0000 | K162: 111800 | L162: 111800 | M162: 0 | N162: 111800 | O162: 0 | P162: 111800 | Q162: 0 | R162: 111800 | S162: 111800
A163: Обслуживание городской системы видеонаблюдения, услуги по предоставлению информации государственного учреждения "Владимирский областной центр по гидрометеорологии и мониторингу окружающей среды" | B163: 0910420220 | C163: 000 | D163: 000 | E163: 0000 | K163: 111800 | L163: 111800 | M163: 0 | N163: 111800 | O163: 0 | P163: 111800 | Q163: 0 | R163: 111800 | S163: 111800
A164: Закупка товаров, работ и услуг для обеспечения государственных (муниципальных) нужд | B164: 0910420220 | C164: 200 | D164: 000 | E164: 0000 | K164: 111800 | L164: 111800 | M164: 0 | N164: 111800 | O164: 0 | P164: 111800 | Q164: 0 | R164: 111800 | S164: 111800
A165: Коммунальное хозяйство | B165: 0910420220 | C165: 200 | D165: 000 | E165: 0502 | K165: 111800 | L165: 111800 | M165: 0 | N165: 111800 | O165: 0 | P165: 111800 | Q165: 0 | R165: 111800 | S165: 111800
A166: Основное мероприятие "Обеспечение финансовой стабильности предприятий бытового облуживания" | B166: 0910500000 | C166: 000 | D166: 000 | E166: 0000 | K166: 2472000 | L166: 2472000 | M166: 0 | N166: 2472000 | O166: 0 | P166: 2472000 | Q166: 0 | R166: 2472000 | S166: 2472000
A167: Субсидии, предоставляемые МУП "ЖКХ" ЗАТО г.Радужный Владимирской области на возмещение фактически понесенных затрат в связи с оказанием социально значимых для города бытовых услуг (услуги городской бани) | B167: 0910562000 | C167: 000 | D167: 000 | E167: 0000 | K167: 2472000 | L167: 2472000 | M167: 0 | N167: 2472000 | O167: 0 | P167: 2472000 | Q167: 0 | R167: 2472000 | S167: 2472000
A168: Иные бюджетные ассигнования | B168: 0910562000 | C168: 800 | D168: 000 | E168: 0000 | K168: 2472000 | L168: 2472000 | M168: 0 | N168: 2472000 | O168: 0 | P168: 2472000 | Q168: 0 | R168: 2472000 | S168: 2472000
A169: Коммунальное хозяйство | B169: 0910562000 | C169: 800 | D169: 000 | E169: 0502 | K169: 2472000 | L169: 2472000 | M169: 0 | N169: 2472000 | O169: 0 | P169: 2472000 | Q169: 0 | R169: 2472000 | S169: 2472000
A170: Основное мероприятие "Организация мероприятий по вопросам похоронного дела на территории ЗАТО г. Радужный. Содержание и обслуживание городского кладбища традиционного захоронения" | B170: 0910600000 | C170: 000 | D170: 000 | E170: 0000 | K170: 2184050 | L170: 2184050 | M170: 0 | N170: 2184050 | O170: 0 | P170: 2184050 | Q170: 0 | R170: 2184050 | S170: 2184050
A171: Организация содержания мест захоронения в соответствии с санитарными нормами, расходы по гарантированному перечню услуг на погребение | B171: 0910620220 | C171: 000 | D171: 000 | E171: 0000 | K171: 2184050 | L171: 2184050 | M171: 0 | N171: 2184050 | O171: 0 | P171: 2184050 | Q171: 0 | R171: 2184050 | S171: 2184050
A172: Закупка товаров, работ и услуг для обеспечения государственных (муниципальных) нужд | B172: 0910620220 | C172: 200 | D172: 000 | E172: 0000 | K172: 2184050 | L172: 2184050 | M172: 0 | N172: 2184050 | O172: 0 | P172: 2184050 | Q172: 0 | R172: 2184050 | S172: 2184050
A173: Благоустройство | B173: 0910620220 | C173: 200 | D173: 000 | E173: 0503 | K173: 2184050 | L173: 2184050 | M173: 0 | N173: 2184050 | O173: 0 | P173: 2184050 | Q173: 0 | R173: 2184050 | S173: 2184050
A174: Основное мероприятие "Организация выполнения работ, необходимых для надлежащего содержания и безопасной эксплуатации муниципальных объектов" | B174: 0910900000 | C174: 000 | D174: 000 | E174: 0000 | K174: 24054912 | L174: 24054912 | M174: 0 | N174: 24054912 | O174: 0 | P174: 24054912 | Q174: 0 | R174: 25355237 | S174: 25355237
A175: Финансирование деятельности муниципальных учреждений, осуществляющих управленческие функции по техническому обеспечению деятельности органов местного самоуправления по решению вопросов местного значения ЗАТО г. Радужный Владимирской области, связанных с надлежащим содержанием и безопасной эксплуатацией муниципальных объектов | B175: 0910900590 | C175: 000 | D175: 000 | E175: 0000 | K175: 24054912 | L175: 24054912 | M175: 0 | N175: 24054912 | O175: 0 | P175: 24054912 | Q175: 0 | R175: 25355237 | S175: 25355237
A176: Расходы на выплаты персоналу в целях обеспечения выполнения функций государственными (муниципальными) органами, казенными учреждениями, органами управления государственными внебюджетными фондами | B176: 0910900590 | C176: 100 | D176: 000 | E176: 0000 | K176: 21741418 | L176: 21741418 | M176: 0 | N176: 21741418 | O176: 0 | P176: 21741418 | Q176: 0 | R176: 22939743 | S176: 22939743
A177: Другие вопросы в области жилищно-коммунального хозяйства | B177: 0910900590 | C177: 100 | D177: 000 | E177: 0505 | K177: 21741418 | L177: 21741418 | M177: 0 | N177: 21741418 | O177: 0 | P177: 21741418 | Q177: 0 | R177: 22939743 | S177: 22939743
A178: Закупка товаров, работ и услуг для обеспечения государственных (муниципальных) нужд | B178: 0910900590 | C178: 200 | D178: 000 | E178: 0000 | K178: 1277700 | L178: 1277700 | M178: 0 | N178: 1277700 | O178: 0 | P178: 1277700 | Q178: 0 | R178: 1379700 | S178: 1379700
A179: Другие вопросы в области жилищно-коммунального хозяйства | B179: 0910900590 | C179: 200 | D179: 000 | E179: 0505 | K179: 1277700 | L179: 1277700 | M179: 0 | N179: 1277700 | O179: 0 | P179: 1277700 | Q179: 0 | R179: 1379700 | S179: 1379700
A180: Иные бюджетные ассигнования | B180: 0910900590 | C180: 800 | D180: 000 | E180: 0000 | K180: 1035794 | L180: 1035794 | M180: 0 | N180: 1035794 | O180: 0 | P180: 1035794 | Q180: 0 | R180: 1035794 | S180: 1035794
A181: Другие вопросы в области жилищно-коммунального хозяйства | B181: 0910900590 | C181: 800 | D181: 000 | E181: 0505 | K181: 1035794 | L181: 1035794 | M181: 0 | N181: 1035794 | O181: 0 | P181: 1035794 | Q181: 0 | R181: 1035794 | S181: 1035794
A182: Муниципальная программа "Охрана окружающей среды ЗАТО г.Радужный Владимирской области" | B182: 1000000000 | C182: 000 | D182: 000 | E182: 0000 | K182: 5404955 | L182: 5404955 | M182: 0 | N182: 5404955 | O182: 0 | P182: 5404955 | Q182: 0 | R182: 5252455 | S182: 5252455
A183: Подпрограмма "Городские леса ЗАТО г.Радужный Владимирской области" | B183: 1010000000 | C183: 000 | D183: 000 | E183: 0000 | K183: 35000 | L183: 35000 | M183: 0 | N183: 35000 | O183: 0 | P183: 35000 | Q183: 0 | R183: 35000 | S183: 35000
A184: Основное мероприятие "Охрана лесов и водных источников" | B184: 1010100000 | C184: 000 | D184: 000 | E184: 0000 | K184: 35000 | L184: 35000 | M184: 0 | N184: 35000 | O184: 0 | P184: 35000 | Q184: 0 | R184: 35000 | S184: 35000
A185: Мероприятия, направленные на сохранение и воспроизводство лесов, охрану и восстановление водных объектов (родников) | B185: 1010120220 | C185: 000 | D185: 000 | E185: 0000 | K185: 35000 | L185: 35000 | M185: 0 | N185: 35000 | O185: 0 | P185: 35000 | Q185: 0 | R185: 35000 | S185: 35000
A186: Закупка товаров, работ и услуг для обеспечения государственных (муниципальных) нужд | B186: 1010120220 | C186: 200 | D186: 000 | E186: 0000 | K186: 35000 | L186: 35000 | M186: 0 | N186: 35000 | O186: 0 | P186: 35000 | Q186: 0 | R186: 35000 | S186: 35000
A187: Другие вопросы в области охраны окружающей среды | B187: 1010120220 | C187: 200 | D187: 000 | E187: 0605 | K187: 35000 | L187: 35000 | M187: 0 | N187: 35000 | O187: 0 | P187: 35000 | Q187: 0 | R187: 35000 | S187: 35000
A188: Подпрограмма "Отходы ЗАТО г.Радужный Владимирской области" | B188: 1020000000 | C188: 000 | D188: 000 | E188: 0000 | K188: 5369955 | L188: 5369955 | M188: 0 | N188: 5369955 | O188: 0 | P188: 5369955 | Q188: 0 | R188: 5217455 | S188: 5217455
A189: Основное мероприятие "Содержание полигона твердых бытовых отходов" | B189: 1020200000 | C189: 000 | D189: 000 | E189: 0000 | K189: 5369955 | L189: 5369955 | M189: 0 | N189: 5369955 | O189: 0 | P189: 5369955 | Q189: 0 | R189: 5217455 | S189: 5217455
A190: Финансирование деятельности муниципальных учреждений, обеспечивающих функционирование полигона твердых бытовых отходов ЗАТО г.Радужный Владимирской области | B190: 1020200590 | C190: 000 | D190: 000 | E190: 0000 | K190: 5369955 | L190: 5369955 | M190: 0 | N190: 5369955 | O190: 0 | P190: 5369955 | Q190: 0 | R190: 5217455 | S190: 5217455
A191: Расходы на выплаты персоналу в целях обеспечения выполнения функций государственными (муниципальными) органами, казенными учреждениями, органами управления государственными внебюджетными фондами | B191: 1020200590 | C191: 100 | D191: 000 | E191: 0000 | K191: 2007330 | L191: 2007330 | M191: 0 | N191: 2007330 | O191: 0 | P191: 2007330 | Q191: 0 | R191: 2007330 | S191: 2007330
A192: Благоустройство | B192: 1020200590 | C192: 100 | D192: 000 | E192: 0503 | K192: 2007330 | L192: 2007330 | M192: 0 | N192: 2007330 | O192: 0 | P192: 2007330 | Q192: 0 | R192: 2007330 | S192: 2007330
A193: Закупка товаров, работ и услуг для обеспечения государственных (муниципальных) нужд | B193: 1020200590 | C193: 200 | D193: 000 | E193: 0000 | K193: 2541305 | L193: 2541305 | M193: 0 | N193: 2541305 | O193: 0 | P193: 2541305 | Q193: 0 | R193: 2388805 | S193: 2388805
A194: Благоустройство | B194: 1020200590 | C194: 200 | D194: 000 | E194: 0503 | K194: 2541305 | L194: 2541305 | M194: 0 | N194: 2541305 | O194: 0 | P194: 2541305 | Q194: 0 | R194: 2388805 | S194: 2388805
A195: Иные бюджетные ассигнования | B195: 1020200590 | C195: 800 | D195: 000 | E195: 0000 | K195: 821320 | L195: 821320 | M195: 0 | N195: 821320 | O195: 0 | P195: 821320 | Q195: 0 | R195: 821320 | S195: 821320
A196: Благоустройство | B196: 1020200590 | C196: 800 | D196: 000 | E196: 0503 | K196: 821320 | L196: 821320 | M196: 0 | N196: 821320 | O196: 0 | P196: 821320 | Q196: 0 | R196: 821320 | S196: 821320
A197: Муниципальная программа "Обеспечение населения ЗАТО г.Радужный Владимирской области питьевой водой" | B197: 1100000000 | C197: 000 | D197: 000 | E197: 0000 | K197: 13598834 | L197: 13598834 | M197: 0 | N197: 13598834 | O197: 0 | P197: 13598834 | Q197: 0 | R197: 1098504 | S197: 104778504
A198: Основное мероприятие "Развитие и совершенствование системы водоснабжения" | B198: 1100100000 | C198: 000 | D198: 000 | E198: 0000 | K198: 13598834 | L198: 13598834 | M198: 0 | N198: 13598834 | O198: 0 | P198: 13598834 | Q198: 0 | R198: 1098504 | S198: 1098504
A199: Содержание и обслуживание пунктов разбора воды, станции подкачки холодной воды, лабораторные исследования воды на микробиологические показатели из ЦТП | B199: 1100120220 | C199: 000 | D199: 000 | E199: 0000 | K199: 1098834 | L199: 1098834 | M199: 0 | N199: 1098834 | O199: 0 | P199: 1098834 | Q199: 0 | R199: 1098504 | S199: 1098504
A200: Закупка товаров, работ и услуг для обеспечения государственных (муниципальных) нужд | B200: 1100120220 | C200: 200 | D200: 000 | E200: 0000 | K200: 1098834 | L200: 1098834 | M200: 0 | N200: 1098834 | O200: 0 | P200: 1098834 | Q200: 0 | R200: 1098504 | S200: 1098504
A201: Коммунальное хозяйство | B201: 1100120220 | C201: 200 | D201: 000 | E201: 0502 | K201: 1098834 | L201: 1098834 | M201: 0 | N201: 1098834 | O201: 0 | P201: 1098834 | Q201: 0 | R201: 1098504 | S201: 1098504
A202: Расходы на ПИРы на строительство станции водоподготовки УВС-III (обезжелезивания) | B202: 1100140100 | C202: 000 | D202: 000 | E202: 0000 | K202: 12500000 | L202: 12500000 | M202: 0 | N202: 12500000 | O202: 0 | P202: 12500000 | Q202: 0 | R202: 0 | S202: 0
... 532 more rows

Sheet 2021-2023
E1: Приложение № 8
E2: к решению совета народных депутатов
E3: ЗАТО г.Радужный Владимирской области
E4: от__________________ №________
A6: Распределение бюджетных ассигнований по целевым статьям (муниципальным программам ЗАТО г.Радужный и непрограммным направлениям деятельности), группам видов расходов, разделам, подразделам классификации расходов бюджета ЗАТО г.Радужный на 2021 год и плановый период 2022 и 2023 годов
A7: руб.
A8: Наименование расходов | B8: Код целевой статьи | C8: Код группы вида расходов | D8: Код раздела, подраздела | E8: Сумма на 2021 год | F8: Сумма на 2022 год | G8: Сумма на 2023 год
A9: Всего расходов: | E9: 643382435 | F9: 565216039 | G9: 800369073
A10: Муниципальные программы | E10: =E11+E34+E53+E62+E75+E96+E113+E119+E143+E154+E163+E172+E212+E216+E353+E456 -> 611939298 | F10: =F11+F34+F53+F62+F75+F96+F113+F119+F143+F154+F163+F172+F212+F216+F353+F456 -> 539345819 | G10: =G11+G34+G53+G62+G75+G96+G113+G119+G143+G154+G163+G172+G212+G216+G353+G456 -> 771555353
A11: Муниципальная программа "Развитие муниципальной службы и органов управления ЗАТО г.Радужный Владимирской области" | E11: 69470650 | F11: 65376879 | G11: 62396879
A12: Основное мероприятие "Создание условий для развития муниципальной службы в муниципальном образовании ЗАТО г.Радужный Владимирской области" | E12: 7107200 | F12: 4547200 | G12: 4547200
A13: Пенсии за выслугу лет лицам, замещавшим муниципальные должности и должности муниципальной службы ЗАТО г. Радужный Владимирской области | B13: 0100110500 | E13: 2097200 | F13: 2097200 | G13: 2097200
A14: Закупка товаров, работ и услуг для обеспечения государственных (муниципальных) нужд | B14: 0100110500 | C14: 200 | D14: 1001 | E14: 20800 | F14: 20800 | G14: 20800
A15: Социальное обеспечение и иные выплаты населению | B15: 0100110500 | C15: 300 | D15: 1001 | E15: 2076400 | F15: 2076400 | G15: 2076400
A16: Мероприятия, направленные на повышение эффективности муниципального управления | B16: 0100120220 | E16: 3510000 | F16: 2450000 | G16: 2450000
A17: Закупка товаров, работ и услуг для обеспечения государственных (муниципальных) нужд | B17: 0100120220 | C17: 200 | E17: 3510000 | F17: 2450000 | G17: 2450000
A18: Закупка товаров, работ и услуг для обеспечения государственных (муниципальных) нужд | B18: 0100120220 | C18: 200 | D18: 0113 | E18: 10000 | F18: 0 | G18: 0
A19: Закупка товаров, работ и услуг для обеспечения государственных (муниципальных) нужд | B19: 0100120220 | C19: 200 | D19: 1202 | E19: 3500000 | F19: 2450000 | G19: 2450000
A20: Средства на индексацию заработной платы муниципальных служащих и работников муниципальных казенных учреждений, исполнение Указов Президента о доведении заработной платы согласно "дорожным картам" | B20: 0100120229 | E20: 1500000 | F20: 0 | G20: 0
A21: Иные бюджетные ассигнования | B21: 0100120229 | C21: 800 | D21: 0113 | E21: 1500000 | F21: 0 | G21: 0
A22: Основное мероприятие "Расходы на обеспечение деятельности центров органов местного самоуправления" | B22: 01002 | E22: 8158488 | F22: 10371769 | G22: 7391769
A23: Финансирование деятельности профильных (функциональных) центров, созданных в органах местного самоуправления | B23: 0100200590 | E23: 8158488 | F23: 10371769 | G23: 7391769
A24: Расходы на выплаты персоналу в целях обеспечения выполнения функций государственными (муниципальными) органами, казенными учреждениями, органами управления государственными внебюджетными фондами | B24: 0100200590 | C24: 100 | D24: 0113 | E24: 7421614 | F24: 9715405 | G24: 6735405
A25: Закупка товаров, работ и услуг для обеспечения государственных (муниципальных) нужд | B25: 0100200590 | C25: 200 | D25: 0113 | E25: 736874 | F25: 656364 | G25: 656364
A26: Основное мероприятие "Создание условий для эффективного содержания административных зданий" | B26: 01003 | E26: 54043762 | F26: 50457910 | G26: 50457910
A27: Финансирование деятельности муниципальных учреждений, обеспечивающих эффективное содержание и эксплуатацию административных зданий | B27: 0100300590 | E27: 54043762 | F27: 50457910 | G27: 50457910
A28: Расходы на выплаты персоналу в целях обеспечения выполнения функций государственными (муниципальными) органами, казенными учреждениями, органами управления государственными внебюджетными фондами | B28: 0100300590 | C28: 100 | D28: 0113 | E28: 40053671 | F28: 37945063 | G28: 37945063
A29: Закупка товаров, работ и услуг для обеспечения государственных (муниципальных) нужд | B29: 0100300590 | C29: 200 | D29: 0113 | E29: 11906873 | F29: 9921992 | G29: 9953544
A30: Иные бюджетные ассигнования | B30: 0100300590 | C30: 800 | D30: 0113 | E30: 2083218 | F30: 2590855 | G30: 2559303
A31: Основное мероприятие "Проведение Всероссийской переписи населения 2020 года" | B31: 01005 | E31: 161200 | F31: 0 | G31: 0
A32: Проведение Всероссийской переписи населения 2020 года | B32: 0100554690 | E32: 161200 | F32: 0 | G32: 0
A33: Закупка товаров, работ и услуг для обеспечения государственных (муниципальных) нужд | B33: 0100554690 | C33: 200 | D33: 0113 | E33: 161200 | F33: 0 | G33: 0
A34: Муниципальная программа "Обеспечение общественного порядка и профилактики правонарушений ЗАТО г. Радужный Владимирской области Владимирской области" | B34: 03 | E34: 181000 | F34: 0 | G34: 0
A35: Подпрограмма "Комплексные меры противодействия злоупотреблению наркотиками и их незаконному обороту на территории ЗАТО г.Радужный Владимирской области" | B35: 033 | E35: 153000 | F35: 0 | G35: 0
A36: Основное мероприятие "Сокращение масштабов распространения наркомании и связанного с ней социального и экономического ущерба" | B36: 03301 | E36: 153000 | F36: 0 | G36: 0
A37: Мероприятия, направленные на сокращение масштабов распространения наркомании и связанного с ней социального и экономического ущерба | B37: 0330120220 | E37: 38000 | F37: 0 | G37: 0
A38: Закупка товаров, работ и услуг для обеспечения государственных (муниципальных) нужд | B38: 0330120220 | C38: 200 | D38: 0314 | E38: 38000 | F38: 0 | G38: 0
A39: Создание и оборудование кабинетов наркопрофилактики в образовательных организациях | B39: 0330171690 | E39: 100000 | F39: 0 | G39: 0
A40: Предоставление субсидий бюджетным, автономным учреждениям и иным некоммерческим организациям | B40: 0330171690 | C40: 600 | D40: 0314 | E40: 100000 | F40: 0 | G40: 0
A41: Мероприятия по созданию и оборудованию кабинетов наркопрофилактики в образовательных организациях | B41: 03301S1690 | E41: 15000 | F41: 0 | G41: 0
A42: Предоставление субсидий бюджетным, автономным учреждениям и иным некоммерческим организациям | B42: 03301S1690 | C42: 600 | D42: 0314 | E42: 15000 | F42: 0 | G42: 0
A43: Подпрограмма "Комплексные меры противодействия злоупотреблению алкогольной продукцией и профилактика алкоголизма населения на территории ЗАТО г. Радужный Владимирской области" | B43: 034 | E43: 25000 | F43: 0 | G43: 0
A44: Основное мероприятие "Профилактика злоупотребления алкогольной продукцией" | B44: 03401 | E44: 25000 | F44: 0 | G44: 0
A45: Мероприятия, направленные на повышение эффективности профилактики злоупотребления алкогольной продукцией | B45: 0340120220 | E45: 20000 | F45: 0 | G45: 0
A46: Закупка товаров, работ и услуг для обеспечения государственных (муниципальных) нужд | B46: 0340120220 | C46: 200 | D46: 0314 | E46: 20000 | F46: 0 | G46: 0
A47: Приобретение специализированной литературы по пропаганде здорового образа жизни, профилактике алкоголизации населения (МБУК "Общедоступная библиотека") | B47: 034012Ю220 | E47: 5000 | F47: 0 | G47: 0
A48: Предоставление субсидий бюджетным, автономным учреждениям и иным некоммерческим организациям | B48: 034012Ю220 | C48: 600 | D48: 0314 | E48: 5000 | F48: 0 | G48: 0
A49: Подпрограмма "Противодействие терроризму и экстремизму на территории ЗАТО г. Радужный Владимирской области" | B49: 035 | E49: 3000 | F49: 0 | G49: 0
A50: Основное мероприятие "Профилактика экстремизма и терроризма на территории ЗАТО г.Радужный Владимирской области" | B50: 03501 | E50: 3000 | F50: 0 | G50: 0
A51: Мероприятия, направленные на предупреждение (профилактику) терроризма и экстремизма среди подростков и молодежи | B51: 0350120220 | E51: 3000 | F51: 0 | G51: 0
A52: Закупка товаров, работ и услуг для обеспечения государственных (муниципальных) нужд | B52: 0350120220 | C52: 200 | D52: 0314 | E52: 3000 | F52: 0 | G52: 0
A53: Муниципальная программа "Землеустройство, использование и охрана земель, оценка недвижимости, признание прав и регулирование отношений по муниципальной собственности ЗАТО г.Радужный Владимирской области" | B53: 04 | E53: 640000 | F53: 640000 | G53: 640000
A54: Подпрограмма "Землеустройство, использование и охрана земель на территории ЗАТО г.Радужный Владимирской области" | B54: 041 | E54: 500000 | F54: 500000 | G54: 500000
A55: Основное мероприятие "Мероприятия по землеустройству и землепользованию на территории ЗАТО г.Радужный Владимирской области | B55: 04101 | E55: 500000 | F55: 500000 | G55: 500000
A56: Мероприятия, направленные на совершенствование учета земельных участков, покрытие территории картографическими материалами | B56: 0410120220 | E56: 500000 | F56: 500000 | G56: 500000
A57: Закупка товаров, работ и услуг для обеспечения государственных (муниципальных) нужд | B57: 0410120220 | C57: 200 | D57: 0412 | E57: 500000 | F57: 500000 | G57: 500000
A58: Подпрограмма "Оценка недвижимости, признание прав и регулирование отношений по муниципальной собственности ЗАТО г.Радужный Владимирской области" | B58: 042 | E58: 140000 | F58: 140000 | G58: 140000
A59: Основное мероприятие "Оценка недвижимости, признание прав и регулирование отношений по муниципальной собственности ЗАТО г.Радужный Владимирской области" | B59: 04201 | E59: 140000 | F59: 140000 | G59: 140000
A60: Мероприятия, направленные на обеспечение защиты имущественных прав муниципального образования ЗАТО г.Радужный на объекты недвижимости | B60: 0420120220 | E60: 140000 | F60: 140000 | G60: 140000
A61: Закупка товаров, работ и услуг для обеспечения государственных (муниципальных) нужд | B61: 0420120220 | C61: 200 | D61: 0113 | E61: 140000 | F61: 140000 | G61: 140000
A62: Муниципальная программа "Информатизация ЗАТО г.Радужный Владимирской области | B62: 05 | E62: 2438980 | F62: 1787572 | G62: 1788562
A63: Основное мероприятие "Обеспечение предоставления гражданам и организациям услуг с использованием современных информационных и телекоммуникационных технологий" | B63: 05001 | E63: 97000 | F63: 97000 | G63: 97000
A64: Развитие и обеспечение функционирования муниципального сегмента СМЭВ, взаимодействие с ГИС ГМП | B64: 0500120220 | E64: 97000 | F64: 97000 | G64: 97000
A65: Закупка товаров, работ и услуг для обеспечения государственных (муниципальных) нужд | B65: 0500120220 | C65: 200 | D65: 0410 | E65: 97000 | F65: 97000 | G65: 97000
A66: Основное мероприятие "Предоставление гражданам и организациям информации о деятельности органов местного самоуправления с использованием информационных и телекоммуникационных технологий" | B66: 05002 | E66: 594000 | F66: 293750 | G66: 293750
A67: Развитие и техническая поддержка официального сайта органов местного самоуправления | B67: 0500220220 | E67: 594000 | F67: 293750 | G67: 293750
A68: Закупка товаров, работ и услуг для обеспечения государственных (муниципальных) нужд | B68: 0500220220 | C68: 200 | D68: 0410 | E68: 594000 | F68: 293750 | G68: 293750
A69: Основное мероприятие "Развитие технической и технологической основы становления информационного общества" | B69: 05003 | E69: 1666180 | F69: 1315022 | G69: 1316012
A70: Обеспечение структурных подразделений администрации средствами связи, лицензионными версиями общесистемного и прикладного программного обеспечения, доступом к информационно-справочным правовым системам | B70: 0500320220 | E70: 1666180 | F70: 1315022 | G70: 1316012
A71: Закупка товаров, работ и услуг для обеспечения государственных (муниципальных) нужд | B71: 0500320220 | C71: 200 | D71: 0410 | E71: 1666180 | F71: 1315022 | G71: 1316012
A72: Основное мероприятие "Предупреждение угроз, возникающих в информационном обществе" | B72: 05004 | E72: 81800 | F72: 81800 | G72: 81800
A73: Приобретение программного обеспечения и оборудования для обеспечения информационной безопасности, аттестации информационных систем и автоматизированных рабочих мест | B73: 0500420220 | E73: 81800 | F73: 81800 | G73: 81800
A74: Закупка товаров, работ и услуг для обеспечения государственных (муниципальных) нужд | B74: 0500420220 | C74: 200 | D74: 0410 | E74: 81800 | F74: 81800 | G74: 81800
A75: Муниципальная программа "Перспективное развитие и совершенствование гражданской обороны, защита населения и территории, обеспечение пожарной безопасности и безопасности людей на водных объектах ЗАТО г. Радужный Владимирской области" | B75: 06 | E75: 33519465 | F75: 21315927 | G75: 12131941
A76: Подпрограмма "Совершенствование гражданской обороны, защита населения и территории, обеспечение пожарной безопасности и безопасности людей на водных объектах ЗАТО г.Радужный Владимирской области" | B76: 061 | E76: 33018265 | F76: 20814727 | G76: 11630741
A77: Основное мероприятие "Совершенствование и развитие гражданской обороны, защиты населения и территории, обеспечение пожарной безопасности и безопасности людей на водных объектах" | B77: 06101 | E77: 131700 | F77: 131700 | G77: 131700
A78: Мероприятия, направленные на повышение качества защиты населения и территории города от возможных ЧС природного, техногенного и террористического характера, организации управления силами и средствами городского звена РСЧС и ГО ЗАТО г. Радужный | B78: 0610120220 | E78: 131700 | F78: 131700 | G78: 131700
A79: Закупка товаров, работ и услуг для обеспечения государственных (муниципальных) нужд | B79: 0610120220 | C79: 200 | D79: 0309 | E79: 131700 | F79: 131700 | G79: 131700
A80: Основное мероприятие "Организация работ по недопущению и ликвидации чрезвычайных ситуаций" | B80: 06102 | E80: 10023065 | F80: 6060000 | G80: 6060000
A81: Мероприятия, направленные на недопущение и ликвидацию ЧС на территории ЗАТО г. Радужный, обеспечение формирований ГО и городского звена РСЧС необходимыми материалами из резерва материальных ресурсов для предупреждения ЧС и ликвидации их последствий | B81: 0610220220 | E81: 6060000 | F81: 6060000 | G81: 6060000
A82: Закупка товаров, работ и услуг для обеспечения государственных (муниципальных) нужд | B82: 0610220220 | C82: 200 | D82: 0309 | E82: 6060000 | F82: 6060000 | G82: 6060000
A83: Субсидии на возмещение расходов предприятиям, привлекаемым для обеспечения санитарно-эпидемиологического благополучия населения для недопущения распространения новой коронавирусной инфекции на территории ЗАТО г.Радужный Владимирской области | B83: 0610260005 | E83: 3963065 | F83: 0 | G83: 0
A84: Иные бюджетные ассигнования | B84: 0610260005 | C84: 800 | D84: 0309 | E84: 3963065 | F84: 0 | G84: 0
A85: Основное мероприятие "Организация мероприятий по гражданской обороне" | B85: 06103 | E85: 2863500 | F85: 2863500 | G85: 2863500
A86: Финансирование деятельности муниципальных учреждений, обеспечивающих выполнение мероприятий в области гражданской обороны, защиты населения и территорий от чрезвычайных ситуаций, обеспечения пожарной безопасности и безопасности людей на водных объектах на территории ЗАТО г. Радужный в пределах установленных полномочий | B86: 0610300590 | E86: 2863500 | F86: 2863500 | G86: 2863500
A87: Расходы на выплаты персоналу в целях обеспечения выполнения функций государственными (муниципальными) органами, казенными учреждениями, органами управления государственными внебюджетными фондами | B87: 0610300590 | C87: 100 | D87: 0309 | E87: 2393600 | F87: 2393600 | G87: 2393600
A88: Закупка товаров, работ и услуг для обеспечения государственных (муниципальных) нужд | B88: 0610300590 | C88: 200 | D88: 0309 | E88: 469900 | F88: 469900 | G88: 469900
A89: Основное мероприятие "Создание и использование финансового резерва для выполнения мероприятий городского значения по ликвидации аварийных ситуаций и ЧС, возникающих в системах жизнеобеспечения города и сбоев подачи энергоресурсов для населения города" | B89: 06104 | E89: 20000000 | F89: 11759527 | G89: 2575541
A90: Мероприятия по предупреждению и ликвидации аварийных ситуаций в системах жизнеобеспечения города и сбоев подачи энергоресурсов для населения города | B90: 0610420220 | E90: 20000000 | F90: 11759527 | G90: 2575541
A91: Иные бюджетные ассигнования | B91: 0610420220 | C91: 800 | D91: 0309 | E91: 20000000 | F91: 11759527 | G91: 2575541
A92: Подпрограмма "Безопасный город" | B92: 062 | E92: 501200 | F92: 501200 | G92: 501200
A93: Основное мероприятие "Внедрение и развитие аппаратно-программного комплекса "Безопасный город" | B93: 06201 | E93: 501200 | F93: 501200 | G93: 501200
A94: Мероприятия, направленные на внедрения на базе муниципального образования комплексной информационной системы, обеспечивающей прогнозирование, мониторинг, предупреждение и ликвидацию возможных угроз | B94: 0620120220 | E94: 501200 | F94: 501200 | G94: 501200
A95: Закупка товаров, работ и услуг для обеспечения государственных (муниципальных) нужд | B95: 0620120220 | C95: 200 | D95: 0309 | E95: 501200 | F95: 501200 | G95: 501200
A96: Муниципальная программа "Обеспечение доступным и комфортным жильем населения ЗАТО г.Радужный Владимирской области" | B96: 07 | E96: 2489162 | F96: 408510 | G96: 145162510
A97: Подпрограмма "Обеспечение жильем многодетных семей ЗАТО г.Радужный" | B97: 073 | E97: 1264262 | F97: 408510 | G97: 408510
A98: Основное мероприятие "Предоставление многодетным семьям социальных выплат на приобретение жилья" | B98: 07301 | E98: 1264262 | F98: 408510 | G98: 408510
A99: Обеспечение жильем многодетных семей | B99: 0730170810 | E99: 1206100 | F99: 389200 | G99: 389200
A100: Социальное обеспечение и иные выплаты населению | B100: 0730170810 | C100: 300 | D100: 1003 | E100: 1206100 | F100: 389200 | G100: 389200
A101: Обеспечение жильем многодетных семей | B101: 07301S0810 | E101: 58162 | F101: 19310 | G101: 19310
A102: Социальное обеспечение и иные выплаты населению | B102: 07301S0810 | C102: 300 | D102: 1003 | E102: 58162 | F102: 19310 | G102: 19310
A103: Подпрограмма "Социальное жилье ЗАТО г.Радужный" | B103: 075 | E103: 0 | F103: 0 | G103: 144754000
A104: Основное мероприятие "Строительство жилья" | B104: 07501 | E104: 0 | F104: 0 | G104: 144754000
A105: Строительство социального жилья и приобретение жилых помещений для граждан, нуждающихся в улучшении жилищных условий (строительство многоквартирного дома в 9 квартале) | B105: 0750170090 | E105: 0 | F105: 0 | G105: 144754000
A106: Капитальные вложения в объекты государственной (муниципальной) собственности | B106: 0750170090 | C106: 400 | D106: 0501 | E106: 0 | F106: 0 | G106: 144754000
A107: Подпрограмма "Обеспечение жильем молодых семей ЗАТО г.Радужный" | B107: 076 | E107: 1224900 | F107: 0 | G107: 0
A108: Основное мероприятие "Предоставление молодым семьям социальных выплат на приобретение жилья" | B108: 07601 | E108: 1224900 | F108: 0 | G108: 0
A109: Реализация мероприятий по обеспечению жильем молодых семей | B109: 07601L4970 | E109: 180000 | F109: 0 | G109: 0
A110: Социальное обеспечение и иные выплаты населению | B110: 07601L4970 | C110: 300 | D110: 1004 | E110: 180000 | F110: 0 | G110: 0
A111: Реализация мероприятий по обеспечению жильем молодых семей | B111: 07601R4970 | E111: 1044900 | F111: 0 | G111: 0
A112: Социальное обеспечение и иные выплаты населению | B112: 07601R4970 | C112: 300 | D112: 1004 | E112: 1044900 | F112: 0 | G112: 0
A113: Муниципальная программа "Энергосбережение и повышение надежности энергоснабжения в топливно-энергетическом комплексе ЗАТО г. Радужный Владимирской области" | B113: 08 | E113: 14302000 | F113: 14302000 | G113: 6032250
A114: Основное мероприятие "Мероприятия в целях реализации концессионных соглашений от 17.09.2015 № 2015-01-ТС и № 2015-02-ВС" | B114: 08004 | E114: 14302000 | F114: 14302000 | G114: 6032250
A115: Субсидии, предоставляемые ЗАО "Радугаэнерго", на финансирование расходов на капитальный ремонт объектов, входящих в единую закрытую систему теплоснабжения на территории ЗАТО г.Радужный Владимирской области | B115: 0800460001 | E115: 9170000 | F115: 9170000 | G115: 3860560
A116: Иные бюджетные ассигнования | B116: 0800460001 | C116: 800 | D116: 0502 | E116: 9170000 | F116: 9170000 | G116: 3860560
A117: Субсидии, предоставляемые ЗАО "Радугаэнерго", на финансирование расходов на капитальный ремонт объектов, входящих в централизованную систему водоснабжения на территории ЗАТО г. Радужный Владимирской области | B117: 0800460002 | E117: 5132000 | F117: 5132000 | G117: 2171690
A118: Иные бюджетные ассигнования | B118: 0800460002 | C118: 800 | D118: 0502 | E118: 5132000 | F118: 5132000 | G118: 2171690
A119: Муниципальная программа "Жилищно-коммунальный комплекс ЗАТО г.Радужный Владимирской области" | B119: 09 | E119: 31651662 | F119: 30951987 | G119: 30951987
A120: Подпрограмма "Развитие жилищно-коммунального комплекса ЗАТО г.Радужный Владимирской области" | B120: 091 | E120: 31651662 | F120: 30951987 | G120: 30951987
A121: Основное мероприятие "Содержание, обслуживание, ремонт, модернизация объектов жилого фонда" | B121: 09101 | E121: 2180000 | F121: 180000 | G121: 180000
A122: Обслуживание объектов муниципального жилищного фонда, в том числе взносы на ремонт общего имущества многоквартирных домов в части муниципального жилья | B122: 0910120220 | E122: 2000000 | F122: 0 | G122: 0
A123: Закупка товаров, работ и услуг для обеспечения государственных (муниципальных) нужд | B123: 0910120220 | C123: 200 | D123: 0501 | E123: 2000000 | F123: 0 | G123: 0
A124: Обслуживание объектов муниципального жилищного фонда в части обеспечения пожарной безопасности | B124: 0910120221 | E124: 180000 | F124: 180000 | G124: 180000
A125: Закупка товаров, работ и услуг для обеспечения государственных (муниципальных) нужд | B125: 0910120221 | C125: 200 | D125: 0501 | E125: 180000 | F125: 180000 | G125: 180000
A126: Основное мероприятие "Обслуживание, содержание, ремонт, модернизация объектов коммунального хозяйства" | B126: 09102 | E126: 648900 | F126: 648900 | G126: 648900
A127: Обслуживание, периодическая поверка, ремонт и диспетчеризация работы узлов учета тепловой энергии и воды на вводах в город и на объектах социально-культурного назначения | B127: 0910220220 | E127: 648900 | F127: 648900 | G127: 648900
A128: Закупка товаров, работ и услуг для обеспечения государственных (муниципальных) нужд | B128: 0910220220 | C128: 200 | D128: 0502 | E128: 648900 | F128: 648900 | G128: 648900
A129: Основное мероприятие "Предупреждение чрезвычайных ситуаций на территории города" | B129: 09104 | E129: 111800 | F129: 111800 | G129: 111800
A130: Обслуживание городской системы видеонаблюдения, услуги по предоставлению информации государственного учреждения "Владимирский областной центр по гидрометеорологии и мониторингу окружающей среды" | B130: 0910420220 | E130: 111800 | F130: 111800 | G130: 111800
A131: Закупка товаров, работ и услуг для обеспечения государственных (муниципальных) нужд | B131: 0910420220 | C131: 200 | D131: 0502 | E131: 111800 | F131: 111800 | G131: 111800
A132: Основное мероприятие "Обеспечение финансовой стабильности предприятий бытового облуживания" | B132: 09105 | E132: 2472000 | F132: 2472000 | G132: 2472000
A133: Субсидии, предоставляемые МУП "ЖКХ" ЗАТО г.Радужный Владимирской области на возмещение фактически понесенных затрат в связи с оказанием социально значимых для города бытовых услуг (услуги городской бани) | B133: 0910562000 | E133: 2472000 | F133: 2472000 | G133: 2472000
A134: Иные бюджетные ассигнования | B134: 0910562000 | C134: 800 | D134: 0502 | E134: 2472000 | F134: 2472000 | G134: 2472000
A135: Основное мероприятие "Организация мероприятий по вопросам похоронного дела на территории ЗАТО г. Радужный. Содержание и обслуживание городского кладбища традиционного захоронения" | B135: 09106 | E135: 2184050 | F135: 2184050 | G135: 2184050
A136: Организация содержания мест захоронения в соответствии с санитарными нормами, расходы по гарантированному перечню услуг на погребение | B136: 0910620220 | E136: 2184050 | F136: 2184050 | G136: 2184050
A137: Закупка товаров, работ и услуг для обеспечения государственных (муниципальных) нужд | B137: 0910620220 | C137: 200 | D137: 0503 | E137: 2184050 | F137: 2184050 | G137: 2184050
A138: Основное мероприятие "Организация выполнения работ, необходимых для надлежащего содержания и безопасной эксплуатации муниципальных объектов" | B138: 09109 | E138: 24054912 | F138: 25355237 | G138: 25355237
A139: Финансирование деятельности муниципальных учреждений, осуществляющих управленческие функции по техническому обеспечению деятельности органов местного самоуправления по решению вопросов местного значения ЗАТО г. Радужный Владимирской области, связанных с надлежащим содержанием и безопасной эксплуатацией муниципальных объектов | B139: 0910900590 | E139: 24054912 | F139: 25355237 | G139: 25355237
A140: Расходы на выплаты персоналу в целях обеспечения выполнения функций государственными (муниципальными) органами, казенными учреждениями, органами управления государственными внебюджетными фондами | B140: 0910900590 | C140: 100 | D140: 0505 | E140: 21741418 | F140: 22939743 | G140: 22939743
A141: Закупка товаров, работ и услуг для обеспечения государственных (муниципальных) нужд | B141: 0910900590 | C141: 200 | D141: 0505 | E141: 1277700 | F141: 1379700 | G141: 1379700
A142: Иные бюджетные ассигнования | B142: 0910900590 | C142: 800 | D142: 0505 | E142: 1035794 | F142: 1035794 | G142: 1035794
A143: Муниципальная программа "Охрана окружающей среды ЗАТО г.Радужный Владимирской области" | B143: 10 | E143: 5404955 | F143: 5252455 | G143: 5252455
A144: Подпрограмма "Городские леса ЗАТО г.Радужный Владимирской области" | B144: 101 | E144: 35000 | F144: 35000 | G144: 35000
A145: Основное мероприятие "Охрана лесов и водных источников" | B145: 10101 | E145: 35000 | F145: 35000 | G145: 35000
A146: Мероприятия, направленные на сохранение и воспроизводство лесов, охрану и восстановление водных объектов (родников) | B146: 1010120220 | E146: 35000 | F146: 35000 | G146: 35000
A147: Закупка товаров, работ и услуг для обеспечения государственных (муниципальных) нужд | B147: 1010120220 | C147: 200 | D147: 0605 | E147: 35000 | F147: 35000 | G147: 35000
A148: Подпрограмма "Отходы ЗАТО г.Радужный Владимирской области" | B148: 102 | E148: 5369955 | F148: 5217455 | G148: 5217455
A149: Основное мероприятие "Содержание полигона твердых бытовых отходов" | B149: 10202 | E149: 5369955 | F149: 5217455 | G149: 5217455
A150: Финансирование деятельности муниципальных учреждений, обеспечивающих функционирование полигона твердых бытовых отходов ЗАТО г.Радужный Владимирской области | B150: 1020200590 | E150: 5369955 | F150: 5217455 | G150: 5217455
A151: Расходы на выплаты персоналу в целях обеспечения выполнения функций государственными (муниципальными) органами, казенными учреждениями, органами управления государственными внебюджетными фондами | B151: 1020200590 | C151: 100 | D151: 0503 | E151: 2007330 | F151: 2007330 | G151: 2007330
A152: Закупка товаров, работ и услуг для обеспечения государственных (муниципальных) нужд | B152: 1020200590 | C152: 200 | D152: 0503 | E152: 2541305 | F152: 2388805 | G152: 2388805
A153: Иные бюджетные ассигнования | B153: 1020200590 | C153: 800 | D153: 0503 | E153: 821320 | F153: 821320 | G153: 821320
A154: Муниципальная программа "Обеспечение населения ЗАТО г.Радужный Владимирской области питьевой водой" | B154: 11 | E154: 13598834 | F154: 1098504 | G154: 104778504
A155: Основное мероприятие "Развитие и совершенствование системы водоснабжения" | B155: 11001 | E155: 13598834 | F155: 1098504 | G155: 1098504
A156: Содержание и обслуживание пунктов разбора воды, станции подкачки холодной воды, лабораторные исследования воды на микробиологические показатели из ЦТП | B156: 1100120220 | E156: 1098834 | F156: 1098504 | G156: 1098504
A157: Закупка товаров, работ и услуг для обеспечения государственных (муниципальных) нужд | B157: 1100120220 | C157: 200 | D157: 0502 | E157: 1098834 | F157: 1098504 | G157: 1098504
A158: Расходы на ПИРы на строительство станции водоподготовки УВС-III (обезжелезивания) | B158: 1100140100 | E158: 12500000 | F158: 0 | G158: 0
A159: Капитальные вложения в объекты государственной (муниципальной) собственности | B159: 1100140100 | C159: 400 | D159: 0502 | E159: 12500000 | F159: 0 | G159: 0
A160: Основное мероприятие "Реализация мероприятий в рамках национального проекта "Экология" (федерального проекта "Чистая вода")" | B160: 110G5 | E160: 0 | F160: 0 | G160: 103680000
A161: Строительство и реконструкция (модернизация) объектов питьевого водоснабжения в рамках реализации национального проекта "Экология" (федерального проекта "Чистая вода") | B161: 110G552430 | E161: 0 | F161: 0 | G161: 103680000
A162: Капитальные вложения в объекты государственной (муниципальной) собственности | B162: 110G552430 | C162: 400 | D162: 0502 | E162: 0 | F162: 0 | G162: 103680000
A163: Муниципальная программа "Развитие пассажирских перевозок на территории ЗАТО г.Радужный Владимирской области" | B163: 12 | E163: 5819369 | F163: 1311369 | G163: 1311369
A164: Основное мероприятие "Развитие и совершенствование транспортного обслуживания населения г.Радужный" | B164: 12001 | E164: 5819369 | F164: 1311369 | G164: 1311369
A165: Мероприятия, направленные на удовлетворение потребности населения города в транспортном обслуживании, в том числе организация перевозки пассажиров на городском маршруте | B165: 1200120220 | E165: 5708000 | F165: 1200000 | G165: 1200000
A166: Закупка товаров, работ и услуг для обеспечения государственных (муниципальных) нужд | B166: 1200120220 | C166: 200 | D166: 0408 | E166: 1248000 | F166: 1200000 | G166: 1200000
A167: Социальное обеспечение и иные выплаты населению | B167: 1200120220 | C167: 300 | D167: 1003 | E167: 4460000 | F167: 0 | G167: 0
A168: Обеспечение равной доступности услуг транспорта общего пользования для отдельных категорий граждан в муниципальном сообщении | B168: 1200170150 | E168: 105800 | F168: 105800 | G168: 105800
A169: Социальное обеспечение и иные выплаты населению | B169: 1200170150 | C169: 300 | D169: 1003 | E169: 105800 | F169: 105800 | G169: 105800
A170: Обеспечение равной доступности услуг транспорта общего пользования для отдельных категорий граждан в муниципальном сообщении | B170: 12001S0150 | E170: 5569 | F170: 5569 | G170: 5569
A171: Социальное обеспечение и иные выплаты населению | B171: 12001S0150 | C171: 300 | D171: 1003 | E171: 5569 | F171: 5569 | G171: 5569
A172: Муниципальная программа "Дорожное хозяйство и благоустройство ЗАТО г.Радужный Владимирской области" | B172: 13 | E172: 62530972 | F172: 55894606 | G172: 55894606
A173: Подпрограмма "Строительство, ремонт и реконструкция автомобильных дорог общего пользования местного значения" | B173: 131 | E173: 8228414 | F173: 7500000 | G173: 7500000
A174: Основное мероприятие "Финансовое обеспечение дорожной деятельности в рамках реализации национального проекта "Безопасные и качественные автомобильные дороги" (федеральный проект "Дорожная сеть")" | B174: 131R1 | E174: 8228414 | F174: 7500000 | G174: 7500000
A175: Финансовое обеспечение дорожной деятельности в рамках реализации национального проекта "Безопасные и качественные автомобильные дороги" (выполнение работ по текущему ремонту участка кольцевой автомобильной дороги) | B175: 131R153930 | E175: 8228414 | F175: 0 | G175: 0
A176: Закупка товаров, работ и услуг для обеспечения государственных (муниципальных) нужд | B176: 131R153930 | C176: 200 | D176: 0409 | E176: 8228414 | F176: 0 | G176: 0
A177: Финансовое обеспечение дорожной деятельности в рамках реализации национального проекта "Безопасные и качественные автомобильные дороги" (выполнение работ по текущему ремонту участка кольцевой автомобильной дороги) | B177: 131R15393D | E177: 0 | F177: 7500000 | G177: 7500000
A178: Закупка товаров, работ и услуг для обеспечения государственных (муниципальных) нужд | B178: 131R15393D | C178: 200 | D178: 0409 | E178: 0 | F178: 7500000 | G178: 7500000
A179: Подпрограмма "Строительство, ремонт и реконструкция объектов благоустройства" | B179: 132 | E179: 1418700 | F179: 1418700 | G179: 1418700
A180: Основное мероприятие "Строительство, ремонт, реконструкция и обслуживание объектов благоустройства" | B180: 13201 | E180: 1418700 | F180: 1418700 | G180: 1418700
A181: Мероприятия, направленные на содержание объектов благоустройства в надлежащем состоянии, в том числе обслуживание ливневой канализации | B181: 1320120220 | E181: 1382000 | F181: 1382000 | G181: 1382000
A182: Закупка товаров, работ и услуг для обеспечения государственных (муниципальных) нужд | B182: 1320120220 | C182: 200 | D182: 0503 | E182: 1382000 | F182: 1382000 | G182: 1382000
A183: Реализация отдельных государственных полномочий Владимирской области по организации мероприятий при осуществлении деятельности по обращению с животными без владельцев | B183: 1320171980 | E183: 36700 | F183: 36700 | G183: 36700
A184: Закупка товаров, работ и услуг для обеспечения государственных (муниципальных) нужд | B184: 1320171980 | C184: 200 | D184: 0405 | E184: 36700 | F184: 36700 | G184: 36700
A185: Подпрограмма "Содержание дорог и объектов благоустройства" | B185: 133 | E185: 29756523 | F185: 28909027 | G185: 28909027
A186: Основное мероприятие "Содержание и обслуживание городских дорог в зимний, летний и осенний период, содержание и обслуживание объектов благоустройства города" | B186: 13301 | E186: 29756523 | F186: 28909027 | G186: 28909027
A187: Финансирование деятельности муниципальных учреждений, обеспечивающих содержание и обслуживание городских дорог, содержание и обслуживание объектов благоустройства города | B187: 1330100590 | E187: 29756523 | F187: 28909027 | G187: 28909027
A188: Расходы на выплаты персоналу в целях обеспечения выполнения функций государственными (муниципальными) органами, казенными учреждениями, органами управления государственными внебюджетными фондами | B188: 1330100590 | C188: 100 | D188: 0409 | E188: 16066325 | F188: 16066325 | G188: 16066325
A189: Закупка товаров, работ и услуг для обеспечения государственных (муниципальных) нужд | B189: 1330100590 | C189: 200 | E189: 13291348 | F189: 12443852 | G189: 12443852
A190: Закупка товаров, работ и услуг для обеспечения государственных (муниципальных) нужд | B190: 1330100590 | C190: 200 | D190: 0409 | E190: 10694219 | F190: 9846723 | G190: 9846723
A191: Закупка товаров, работ и услуг для обеспечения государственных (муниципальных) нужд | B191: 1330100590 | C191: 200 | D191: 0503 | E191: 2597129 | F191: 2597129 | G191: 2597129
A192: Иные бюджетные ассигнования | B192: 1330100590 | C192: 800 | D192: 0409 | E192: 398850 | F192: 398850 | G192: 398850
A193: Подпрограмма "Техническое обслуживание, ремонт и модернизация уличного освещения" | B193: 134 | E193: 15300000 | F193: 13123590 | G193: 13123590
A194: Основное мероприятие "Техническое обслуживание, содержание, ремонт и модернизация уличного освещения" | B194: 13401 | E194: 15300000 | F194: 13123590 | G194: 13123590
A195: Содержание и обслуживание сетей уличного наружного освещения ЗАТО г.Радужный Владимирской области, в том числе поставка электроэнергии на уличное освещение на территории города | B195: 1340120220 | E195: 15300000 | F195: 13123590 | G195: 13123590
A196: Закупка товаров, работ и услуг для обеспечения государственных (муниципальных) нужд | B196: 1340120220 | C196: 200 | D196: 0503 | E196: 15300000 | F196: 13123590 | G196: 13123590
A197: Подпрограмма "Формирование комфортной городской среды" | B197: 135 | E197: 7495416 | F197: 4611370 | G197: 4611370
A198: Основное мероприятие "Мероприятия по благоустройству дворовых территорий ЗАТО г.Радужный, в том числе в рамках реализации программ современной городской среды | B198: 13501 | E198: 3072468.63 | F198: 0 | G198: 0
A199: Благоустройство придомовых и общественных территорий, в том числе проверка сметной документации | B199: 1350120220 | E199: 3072468.63 | F199: 0 | G199: 0
A200: Закупка товаров, работ и услуг для обеспечения государственных (муниципальных) нужд | B200: 1350120220 | C200: 200 | D200: 0503 | E200: 3072468.63 | F200: 0 | G200: 0
A201: Основное мероприятие "Реализация программ формирования современной городской среды в рамках реализации национального проекта "Жилье и городская среда" (федеральный проект "Жилье")" | B201: 135F2 | E201: 4422947.37 | F201: 4611370 | G201: 4611370
... 339 more rows
